Workbook

Sheet Plots for diederich's factor (hidden)
C2: Plots for Diederich's Factor
B39: C2 | D39: C4 | F39: C1 | H39: C3
B40: x | C40: y | D40: x | E40: y | F40: x | G40: y | H40: x | I40: y
B41: 0 | C41: 1 | D41: 0 | E41: 0 | F41: 0 | G41: 0 | H41: 0 | I41: 0
B42: 1 | C42: 0.9 | D42: 1 | E42: 0.09 | F42: 1 | G42: 0.04 | H42: 1 | I42: 0.04
B43: 2 | C43: 0.79 | D43: 2 | E43: 0.17 | F43: 2 | G43: 0.105 | H43: 2 | I43: 0.095
B44: 3 | C44: 0.695 | D44: 3 | E44: 0.24 | F44: 3 | G44: 0.155 | H44: 3 | I44: 0.135
B45: 4 | C45: 0.605 | D45: 4 | E45: 0.305 | F45: 4 | G45: 0.21 | H45: 4 | I45: 0.18
B46: 5 | C46: 0.515 | D46: 5 | E46: 0.365 | F46: 5 | G46: 0.255 | H46: 5 | I46: 0.22
B47: 6 | C47: 0.44 | D47: 6 | E47: 0.42 | F47: 6 | G47: 0.305 | H47: 6 | I47: 0.25
B48: 7 | C48: 0.37 | D48: 7 | E48: 0.465 | F48: 7 | G48: 0.345 | H48: 7 | I48: 0.285
B49: 8 | C49: 0.3 | D49: 8 | E49: 0.505 | F49: 8 | G49: 0.39 | H49: 8 | I49: 0.315
B50: 9 | C50: 0.23 | D50: 9 | E50: 0.54 | F50: 9 | G50: 0.43 | H50: 9 | I50: 0.34
B51: 10 | C51: 0.17 | D51: 10 | E51: 0.565 | F51: 10 | G51: 0.465 | H51: 10 | I51: 0.36
B52: 11 | C52: 0.115 | D52: 11 | E52: 0.595 | F52: 11 | G52: 0.505 | H52: 11 | I52: 0.38
B53: 12 | C53: 0.07 | D53: 12 | E53: 0.62 | F53: 12 | G53: 0.535 | H53: 12 | I53: 0.385
B54: 13 | C54: 0.02 | D54: 13 | E54: 0.645 | F54: 13 | G54: 0.565 | H54: 13 | I54: 0.395
B55: 14 | C55: 0 | D55: 14 | E55: 0.66 | F55: 14 | G55: 0.59 | H55: 14 | I55: 0.395

Sheet Plots for Sweep Correction (hidden)
C2: Plots for Sweep Correction Function
B45: -45 | D45: -30 | F45: 0 | H45: 30 | J45: 45 | L45: 60
B46: x | C46: y | D46: x | E46: y | F46: x | G46: y | H46: x | I46: y | J46: x | K46: y | L46: x | M46: y
B47: 0 | C47: 2.145 | D47: 0 | E47: 1.8 | F47: 0 | G47: 1.275 | H47: 0 | I47: 0.9 | J47: 0 | K47: 0.65 | L47: 0 | M47: 0.55
B48: 0.1 | C48: 2.09 | D48: 0.1 | E48: 1.765 | F48: 0.1 | G48: 1.26 | H48: 0.1 | I48: 0.98 | J48: 0.1 | K48: 0.82 | L48: 0.1 | M48: 0.71
B49: 0.2 | C49: 1.925 | D49: 0.2 | E49: 1.68 | F49: 0.2 | G49: 1.25 | H49: 0.2 | I49: 1.12 | J49: 0.2 | K49: 1.04 | L49: 0.2 | M49: 0.95
B50: 0.3 | C50: 1.65 | D50: 0.3 | E50: 1.545 | F50: 0.3 | G50: 1.215 | H50: 0.3 | I50: 1.22 | J50: 0.3 | K50: 1.19 | L50: 0.3 | M50: 1.14
B51: 0.4 | C51: 1.37 | D51: 0.4 | E51: 1.355 | F51: 0.4 | G51: 1.175 | H51: 0.4 | I51: 1.27 | J51: 0.4 | K51: 1.28 | L51: 0.4 | M51: 1.28
B52: 0.5 | C52: 1.085 | D52: 0.5 | E52: 1.125 | F52: 0.5 | G52: 1.105 | H52: 0.5 | I52: 1.26 | J52: 0.5 | K52: 1.31 | L52: 0.5 | M52: 1.33
B53: 0.6 | C53: 0.77 | D53: 0.6 | E53: 0.88 | F53: 0.6 | G53: 1.025 | H53: 0.6 | I53: 1.195 | J53: 0.6 | K53: 1.28 | L53: 0.6 | M53: 1.3
B54: 0.7 | C54: 0.45 | D54: 0.7 | E54: 0.6 | F54: 0.7 | G54: 0.905 | H54: 0.7 | I54: 1.09 | J54: 0.7 | K54: 1.175 | L54: 0.7 | M54: 1.22
B55: 0.8 | C55: 0.125 | D55: 0.8 | E55: 0.3 | F55: 0.8 | G55: 0.765 | H55: 0.8 | I55: 0.9 | J55: 0.8 | K55: 0.9 | L55: 0.8 | M55: 1.03
B56: 0.9 | C56: -0.255 | D56: 0.9 | E56: -0.01 | F56: 0.9 | G56: 0.55 | H56: 0.9 | I56: 0.5 | J56: 0.9 | K56: 0.57 | L56: 0.9 | M56: 0.65
B57: 1 | C57: -0.7 | D57: 1 | E57: -0.33 | F57: 1 | G57: 0.1 | H57: 1 | I57: -0.1 | J57: 1 | K57: -0.07 | L57: 1 | M57: -0.06

Sheet (c)
A1: Copyright © 2023
A2: Dieter Scholz, Priyanka Barua, Max Schnoor, Suna Arslan
A9: The spreadsheet for the Project
A10: "Calculating the Wing Lift Distribution with the Diederich Method in Microsoft Excel"
A12: is free software: you can redistribute it and/or modify it
A13: under the terms of the GNU General Public License as published by
A14: the Free Software Foundation, License Version 3.
A16: The spreadsheet is distributed in the hope that it will be useful,
A17: but WITHOUT ANY WARRANTY; without even the implied warranty of
A18: MERCHANTABILITY or FITNESS FOR A PARTICULAR PURPOSE.
A19: See the GNU General Public License for more details.
A21: http://www.gnu.org/licenses/

Sheet Atmosphere Parameters
A1: Calculation of Atmosphere Parameters
U11: Atmosphere Values
U12: Flight altitude | V12: h | W12: =Altitude -> 12 | X12: km
U13: Kinematic viscosity | V13: ν | W13: =kin_vis -> 4.573854902 | X13: E-5 *m²/s
U14: Speed of sound | V14: a | W14: =SoSOUND -> 295.0695567 | X14: m/s
A22: kinematic
A23: viscosity | L23: speed of sound
A24: [m²/s] | L24: [m/s]
G40: altitude [km] | P40: altitude [km]
A63: Plot Tables | L63: Atmospheric Values
A64: Kinematic viscosity *(10^5) | C64: Speed of sound | E64: Temperature | G64: dynamic viscosity | I64: densitiy | L64: Temperature from altitude | M64: =IF(Altitude>11, 216.65, 288.18-6.5*Altitude) -> 216.65
A65: x | B65: y | C65: x | D65: y | E65: x | F65: Y | G65: x | H65: Y | I65: x | J65: Y | L65: Density from altitude | M65: =IF(Altitude>11, 0.3639*EXP(-0.157688*(Altitude-11)), 1.225*(1-0.022558*Altitude)^4.25588) -> 0.3108128942
A66: 0 | B66: =(H66/J66)*10^5 -> 1.460836757 | C66: 0 | D66: =20.0468*SQRT(F66) -> 340.3117749 | E66: 0 | F66: =IF(E66>11, 216.65, 288.18-6.5*E66) -> 288.18 | G66: 0 | H66: =((1.458*10^-6)*((F66)^1.5))/(F66+110.4) -> 1.789525028e-05 | I66: 0 | J66: =IF(I66>11, 0.3639*EXP(-0.157688*(I66-11)), 1.225*(1-0.022558*I66)^4.25588) -> 1.225 | L66: dynamic viscosity from altitude | M66: =((1.458*10^-6)*((Temp)^1.5))/(Temp+110.4) -> 1.42161308e-05
A67: =A66+0.5 -> 0.5 | B67: =(H67/J67)*10^5 -> 1.519617977 | C67: =C66+0.5 -> 0.5 | D67: =20.0468*SQRT(F67) -> 338.3873713 | E67: =E66+0.5 -> 0.5 | F67: =IF(E67>11, 216.65, 288.18-6.5*E67) -> 284.93 | G67: =G66+0.5 -> 0.5 | H67: =((1.458*10^-6)*((F67)^1.5))/(F67+110.4) -> 1.773801503e-05 | I67: =I66+0.5 -> 0.5 | J67: =IF(I67>11, 0.3639*EXP(-0.157688*(I67-11)), 1.225*(1-0.022558*I67)^4.25588) -> 1.167268044 | L67: kinemativ viscosity from altitude *10^5 | M67: =(dyn_vis/den)*10^5 -> 4.573854902
A68: 1 | B68: 1.581438451 | C68: =C67+0.5 -> 1 | D68: 336.4519608 | E68: 1 | F68: 281.68 | G68: 1 | H68: 1.757991831e-05 | I68: 1 | J68: 1.111641006 | L68: speed of sound from altitude | M68: =20.0468*SQRT(Temp) -> 295.0695567
A69: 1.5 | B69: 1.646491174 | C69: =C68+0.5 -> 1.5 | D69: 334.5053524 | E69: 1.5 | F69: 278.43 | G69: 1.5 | H69: 1.742094861e-05 | I69: 1.5 | J69: 1.058065108
A70: 2 | B70: 1.714983739 | C70: 2 | D70: 332.5473495 | E70: 2 | F70: 275.18 | G70: 2 | H70: 1.726109427e-05 | I70: 2 | J70: 1.006487343
A71: 2.5 | B71: 1.787139623 | C71: 2.5 | D71: 330.5777496 | E71: 2.5 | F71: 271.93 | G71: 2.5 | H71: 1.710034338e-05 | I71: 2.5 | J71: 0.9568554779
A72: 3 | B72: 1.863199601 | C72: 3 | D72: 328.5963442 | E72: 3 | F72: 268.68 | G72: 3 | H72: 1.693868382e-05 | I72: 3 | J72: 0.9091180467
A73: 3.5 | B73: 1.94342331 | C73: 3.5 | D73: 326.6029184 | E73: 3.5 | F73: 265.43 | G73: 3.5 | H73: 1.677610326e-05 | I73: 3.5 | J73: 0.863224351
A74: 4 | B74: 2.028090969 | C74: 4 | D74: 324.5972508 | E74: 4 | F74: 262.18 | G74: 4 | H74: 1.661258914e-05 | I74: 4 | J74: 0.8191244571
A75: 4.5 | B75: 2.117505281 | C75: 4.5 | D75: 322.5791129 | E75: 4.5 | F75: 258.93 | G75: 4.5 | H75: 1.644812868e-05 | I75: 4.5 | J75: 0.776769193
A76: 5 | B76: 2.211993536 | C76: 5 | D76: 320.5482693 | E76: 5 | F76: 255.68 | G76: 5 | H76: 1.628270886e-05 | I76: 5 | J76: 0.7361101465
A77: 5.5 | B77: 2.311909947 | C77: 5.5 | D77: 318.504477 | E77: 5.5 | F77: 252.43 | G77: 5.5 | H77: 1.611631644e-05 | I77: 5.5 | J77: 0.6970996628
A78: 6 | B78: 2.417638223 | C78: 6 | D78: 316.4474849 | E78: 6 | F78: 249.18 | G78: 6 | H78: 1.594893794e-05 | I78: 6 | J78: 0.6596908416
A79: 6.5 | B79: 2.529594444 | C79: 6.5 | D79: 314.3770342 | E79: 6.5 | F79: 245.93 | G79: 6.5 | H79: 1.578055964e-05 | I79: 6.5 | J79: 0.6238375354
A80: 7 | B80: 2.648230246 | C80: 7 | D80: 312.2928569 | E80: 7 | F80: 242.68 | G80: 7 | H80: 1.561116757e-05 | I80: 7 | J80: 0.589494346
A81: 7.5 | B81: 2.774036366 | C81: 7.5 | D81: 310.1946766 | E81: 7.5 | F81: 239.43 | G81: 7.5 | H81: 1.544074754e-05 | I81: 7.5 | J81: 0.556616623
A82: 8 | B82: 2.907546597 | C82: 8 | D82: 308.082207 | E82: 8 | F82: 236.18 | G82: 8 | H82: 1.52692851e-05 | I82: 8 | J82: 0.5251604605
A83: 8.5 | B83: 3.0493422 | C83: 8.5 | D83: 305.9551522 | E83: 8.5 | F83: 232.93 | G83: 8.5 | H83: 1.509676555e-05 | I83: 8.5 | J83: 0.4950826951
A84: 9 | B84: 3.200056838 | C84: 9 | D84: 303.8132058 | E84: 9 | F84: 229.68 | G84: 9 | H84: 1.492317395e-05 | I84: 9 | J84: 0.4663409028
A85: 9.5 | B85: 3.360382093 | C85: 9.5 | D85: 301.6560507 | E85: 9.5 | F85: 226.43 | G85: 9.5 | H85: 1.474849511e-05 | I85: 9.5 | J85: 0.4388933968
A86: 10 | B86: 3.531073656 | C86: 10 | D86: 299.4833581 | E86: 10 | F86: 223.18 | G86: 10 | H86: 1.457271359e-05 | I86: 10 | J86: 0.4126992244
A87: 10.5 | B87: 3.712958279 | C87: 10.5 | D87: 297.2947875 | E87: 10.5 | F87: 219.93 | G87: 10.5 | H87: 1.439581371e-05 | I87: 10.5 | J87: 0.3877181651
A88: 11 | B88: 3.906941586 | C88: 11 | D88: 295.0899855 | E88: 11 | F88: 216.68 | G88: 11 | H88: 1.421777952e-05 | I88: 11 | J88: 0.3639107269
A89: 11.5 | B89: 4.227083912 | C89: 11.5 | D89: 295.0695567 | E89: 11.5 | F89: 216.65 | G89: 11.5 | H89: 1.42161308e-05 | I89: 11.5 | J89: 0.3363105889
A90: 12 | B90: 4.573854902 | C90: 12 | D90: 295.0695567 | E90: 12 | F90: 216.65 | G90: 12 | H90: 1.42161308e-05 | I90: 12 | J90: 0.3108128942
A91: 12.5 | B91: 4.949073428 | C91: 12.5 | D91: 295.0695567 | E91: 12.5 | F91: 216.65 | G91: 12.5 | H91: 1.42161308e-05 | I91: 12.5 | J91: 0.2872483305
A92: 13 | B92: 5.355073198 | C92: 13 | D92: 295.0695567 | E92: 13 | F92: 216.65 | G92: 13 | H92: 1.42161308e-05 | I92: 13 | J92: 0.2654703357
A93: 13.5 | B93: 5.794379366 | C93: 13.5 | D93: 295.0695567 | E93: 13.5 | F93: 216.65 | G93: 13.5 | H93: 1.42161308e-05 | I93: 13.5 | J93: 0.2453434596
A94: 14 | B94: 6.26972424 | C94: 14 | D94: 295.0695567 | E94: 14 | F94: 216.65 | G94: 14 | H94: 1.42161308e-05 | I94: 14 | J94: 0.2267425209
A95: 14.5 | B95: 6.784064274 | C95: 14.5 | D95: 295.0695567 | E95: 14.5 | F95: 216.65 | G95: 14.5 | H95: 1.42161308e-05 | I95: 14.5 | J95: 0.2095518294
A96: 15 | B96: 7.340598456 | C96: 15 | D96: 295.0695567 | E96: 15 | F96: 216.65 | G96: 15 | H96: 1.42161308e-05 | I96: 15 | J96: 0.1936644659
A97: 15.5 | B97: 7.942788204 | C97: 15.5 | D97: 295.0695567 | E97: 15.5 | F97: 216.65 | G97: 15.5 | H97: 1.42161308e-05 | I97: 15.5 | J97: 0.1789816174
A98: 16 | B98: 8.594378896 | C98: 16 | D98: 295.0695567 | E98: 16 | F98: 216.65 | G98: 16 | H98: 1.42161308e-05 | I98: 16 | J98: 0.1654119625
A99: 16.5 | B99: 9.299423164 | C99: 16.5 | D99: 295.0695567 | E99: 16.5 | F99: 216.65 | G99: 16.5 | H99: 1.42161308e-05 | I99: 16.5 | J99: 0.1528711034
A100: 17 | B100: 10.0623061 | C100: 17 | D100: 295.0695567 | E100: 17 | F100: 216.65 | G100: 17 | H100: 1.42161308e-05 | I100: 17 | J100: 0.1412810409
A101: 17.5 | B101: 10.88777252 | C101: 17.5 | D101: 295.0695567 | E101: 17.5 | F101: 216.65 | G101: 17.5 | H101: 1.42161308e-05 | I101: 17.5 | J101: 0.1305696897
A102: 18 | B102: 11.78095651 | C102: 18 | D102: 295.0695567 | E102: 18 | F102: 216.65 | G102: 18 | H102: 1.42161308e-05 | I102: 18 | J102: 0.1206704293
A103: 18.5 | B103: 12.7474133 | C103: 18.5 | D103: 295.0695567 | E103: 18.5 | F103: 216.65 | G103: 18.5 | H103: 1.42161308e-05 | I103: 18.5 | J103: 0.1115216904
A104: 19 | B104: 13.79315387 | C104: 19 | D104: 295.0695567 | E104: 19 | F104: 216.65 | G104: 19 | H104: 1.42161308e-05 | I104: 19 | J104: 0.1030665715
A105: 19.5 | B105: 14.9246823 | C105: 19.5 | D105: 295.0695567 | E105: 19.5 | F105: 216.65 | G105: 19.5 | H105: 1.42161308e-05 | I105: 19.5 | J105: 0.09525248516
A106: 20 | B106: 16.14903625 | C106: 20 | D106: 295.0695567 | E106: 20 | F106: 216.65 | G106: 20 | H106: 1.42161308e-05 | I106: 20 | J106: 0.08803083093

Sheet Lift Curve Slope
A1: Calculation of 2D lift curve slope
T12: Intermediate Values
T13: Reynolds number | U13: =Mac*c_g*SoSOUND*1/(kin_vis*10^-5) -> 18063423.01
T14: tan(0,5*phiTE)root | U14: =TAN(0.5*(fi_TE.r)*PI()/180) -> 0.2867453858
T15: tan(0,5*phiTE)tip | U15: =TAN(0.5*(fi_TE.t)*PI()/180) -> 0.1316524976
T16: cl/cltheoryroot | U16: =CLA(U13,U14) -> 0.6840200175
T17: cl/cltheorytip | U17: =CLA(U13,U15) -> 0.8504091728
T18: clalphroot | U18: =1.05/bet*U16*c_l.alp.r -> 9.033479093
T19: clalphtip | U19: =1.05/bet*U17*c_l.alp.t -> 10.23730474
A75: Plot Tables
A76: 10^6 | C76: 10^7 | E76: 10^8
A77: y | B77: x | C77: y | D77: x | E77: y | F77: x
A78: 0.9 | B78: 0 | C78: 0.95 | D78: 0 | E78: 0.965 | F78: 0
A79: 0.835 | B79: 0.06 | C79: 0.9 | D79: 0.071 | E79: 0.938 | F79: 0.06
A80: 0.75 | B80: 0.14 | C80: 0.835 | D80: 0.143 | E80: 0.878 | F80: 0.14
A81: 0.7 | B81: 0.188 | C81: 0.78 | D81: 0.2 | E81: 0.823 | F81: 0.2

Sheet Factors Diederich's Method
A1: Diederich Factors
O6: Intermediate Values
O7: F | P7: =F_ -> 7.307564779
O8: C1 | P8: =C_1 -> 0.3605848441
O9: C2 | P9: =C_2 -> 0.3459203642
O10: C3 | P10: =C_3 -> 0.2951324201
O11: C4 | P11: =C_4 -> 0.4767526344

Sheet Sweep Correction Function
A1: The Sweep Correction Function
A61: Plot Parameters
A62: Input | B62: h | C62: 0.5
B63: L | C63: 30
A64: Output | B64: f | C64: =f(C63,C62) -> 1.26382275

Sheet Mason's Curve
A1: Mason's Curve
O30: Figure 1: Sweep Correction Function
A35: Scale from Mason to Diederich Graph (see Figure 1 and 2 on right): | H35: =1.275/0.71 -> 1.795774648
O52: Figure 2: Mason's Lift Distribution Curve
A67: Plots from Figure 2
A68: Spanwise station as input | B68: 0 | C68: 0.05 | D68: 0.1 | E68: 0.15 | F68: 0.2 | G68: 0.25 | H68: 0.3 | I68: 0.35 | J68: 0.4 | K68: 0.45 | L68: 0.5 | M68: 0.55 | N68: 0.6 | O68: 0.65 | P68: 0.7 | Q68: 0.75 | R68: 0.8 | S68: 0.85 | T68: 0.9 | U68: 0.95 | V68: 1
A69: Spanload calculated with CorelDRAW | B69: 70.86 | C69: 70.09 | D69: 69 | E69: 67.91 | F69: 66.045 | G69: 65.312 | H69: 60.606 | I69: 57.187 | J69: 54.079 | K69: 51.748 | L69: 48.019 | M69: 45.066 | N69: 41.492 | O69: 37.296 | P69: 34.343 | Q69: 30.303 | R69: 25.952 | S69: 22.222 | T69: 17.094 | U69: 11.344 | V69: 0
A70: Spanload converted to scale | B70: =B69*$A$72 -> 0.8 | C70: =C69*$A$72 -> 0.7913068021 | D70: =D69*$A$72 -> 0.7790008467 | E70: =E69*$A$72 -> 0.7666948913 | F70: =F69*$A$72 -> 0.7456392887 | G70: 0.715 | H70: =H69*$A$72 -> 0.6842337003 | I70: 0.6456336438 | J70: 0.6105447361 | K70: 0.5842280553 | L70: 0.54212814 | M70: 0.5087891617 | N70: 0.4684391758 | O70: 0.4210668925 | P70: 0.3877279142 | Q70: 0.3421168501 | R70: 0.2929946373 | S70: 0.2508834321 | T70: 0.1929889924 | U70: 0.1280722552 | V70: 0.05
A71: scale
A72: =0.8/70.86 -> 0.01128986734

Sheet Diederich's Method
A1: Diederich's Method
B6: Input | W6: How to use
B8: General Input
B9: Aspect ratio | C9: A | D9: 10 | E9: -
B10: Taper ratio | C10: λ | D10: 0.16 | E10: - | X10: Beside choosing rational values for the input, the following guidelines should be taken into account
B11: Quarter chord sweep | C11: j0.25 | D11: 25 | E11: deg
B12: Mach number | C12: M | D12: 0.8 | E12: -
B13: Twist | C13: et | D13: -10 | E13: deg | X13: ● | Y13: Only change values in cells with white background
B14: Wing lift coefficient | C14: CL | D14: 1.367 | E14: -
X15: ● | Z15: A > | AA15: =4/(COS(phi_25*(PI()/180))) -> 4.413511676 | AC15: =IF(A_w>AA15, "correct data", "false data") -> correct data
B16: Additional Input
B17: Mean geometric chord | C17: cg | D17: 3.5 | E17: m | X17: ● | Y17: -35° | Z17: < j0.25 < | AA17: 35° | AC17: =IF(AND(-35<phi_25, phi_25<35), "correct data", "false data") -> correct data
B18: Flight altitude | C18: h | D18: 12 | E18: km
B19: Relative thickness at the root | C19: (t/c)r | D19: 0.24 | E19: - | X19: ● | Z19: h < | AA19: 20 km | AC19: =IF(Altitude>20, "false data", "correct data") -> correct data
B20: Relative thickness at the tip | C20: (t/c)t | D20: 0.12 | E20: -
B21: Airfoil trailing edge angle at the root | C21: fTE,r | D21: 32 | E21: deg | X21: ● | Z21: M < | AA21: 0.8 | AC21: =IF(Mac>0.8, "false data", "correct data") -> correct data
B22: Airfoil trailing edge angle at the tip | C22: fTE,t | D22: 15 | E22: deg
B23: Maximum section lift coefficient at the root | C23: cL,max,r | D23: 1.3 | E23: -
B24: Maximum section lift coefficient at the tip | C24: cL,max,t | D24: 1.7 | E24: -
X25: For further use the following statements might be helpful
B26: Output
B28: Maximum Lift Coefficient Calculated | D28: Solver: zero | X28: ● | Y28: Single curves can be hidden by first clicking the graph, then the following button:
B29: min. [section max. lift of the airfoil minus required lift] | C29: - | D29: =GM148 -> 0.0001212256174 | E29: -
B30: Diederich's Lift Distribution Compared | D30: Solver: minimize | X30: ● | Y30: The general input is used for major changes in lift distributions while the additional input refines these results
B31: Error to elliptical lift distribution | C31: - | D31: =GM169 -> 2.963358308 | E31: -
B32: Error to Mason's lift distribution | C32: - | D32: =GM172 -> 2.641847878 | E32: - | X32: ● | Y32: The additional output values are only representative for a correct additional input
B33: Error to triangular lift distribution | C33: - | D33: =GM175 -> 16.23949351 | E33: -
X34: ● | Y34: For detailled values scroll down to the plot tables after finishing the input data or use your cursor and point on a selected curve section
B35: Additional Output
B36: Root chord length | C36: cr | D36: =(2/(1+lam))*c_g -> 6.034482759 | E36: m
B37: Tip chord length | C37: ct | D37: =c_r*lam -> 0.9655172414 | E37: m
B38: Maximum lift coefficient of the wing | C38: CL,max | D38: =GM179*C_L -> 1.367099724 | E38: -
B39: Lift curve slope of the wing (DATCOM) | C39: CL,a | D39: =C197 -> 6.618309385 | E39: 1/rad
B40: Lift curve slope of the airfoils (mean value) | C40: cL,a | D40: =cl_alpha_mean -> 9.487056411 | E40: 1/rad
B41: Reynolds number | C41: Re | D41: =Rey_No -> 18063423.01 | E41: -
B42: Leading edge sweep (0%) | C42: j0.0 | D42: =(LE_angle*(180/PI())) -> 28.31229916 | E42: deg
B43: Trailing edge sweep (100%) | C43: j1.0 | D43: =(TE_angle*(180/PI())) -> 13.98588109 | E43: deg
B44: Mid chort sweep (50%) | C44: j0.5 | D44: =(MC_angle*(180/PI())) -> 21.49917612 | E44: deg
B45: Wing span | C45: b | D45: =A_w*c_r*(1+lam)*0.5 -> 35 | E45: m
B46: Wing surface area | C46: S | D46: =(b_wing/2)*c_r*(1+lam) -> 122.5 | E46: m²
B47: True airspeed | C47: VTAS | D47: =Mac*speedofsound_h -> 236.0556454 | E47: m/s
B48: True airspeed | C48: VTAS | D48: =Mac*speedofsound_h*3.6 -> 849.8003234 | E48: km/h
B50: Calculated Values
B51: 2pA / (cL,a cosj,0.25) | C51: F | D51: =(2*PI()*A_w)/(c_l.alp*COS(phi_25*PI()/180)) -> 7.307564779 | E51: -
B52: Diederich's Factor | C52: C1 | D52: =C_one(D51) -> 0.3605848441 | E52: -
B53: Diederich's Factor | C53: C2 | D53: =C_two(D51) -> 0.3459203642 | E53: -
B54: Diederich's Factor | C54: C3 | D54: =C_three(D51) -> 0.2951324201 | E54: -
B55: Diederich's Factor | C55: C4 | D55: =C_four(D51) -> 0.4767526344 | E55: -
B56: Jone's edge velocity factor | C56: E | D56: =1+((2*lam)/(A_w*(1+lam))) -> 1.027586207 | E56: -
B57: Factor | C57: ao,1 | D57: =-((C_1*(1+(2*lam))/(3*(1+lam)))+((C_2+C_3)*4/(3*PI()))) -> -0.4088448133 | E57: -
B58: Prandtl's compressibility correction | C58: b | D58: =SQRT(1-POWER(Mac,2)) -> 0.6 | E58: -
B59: Effective sweep angle | C59: jb | D59: =ATAN(TAN(MC_angle)/bet)*180/PI() -> 33.28448953 | E59: deg
B60: Theoretical lift curve slope of the airfoil at the root | C60: cL,a,r,theory | D60: =(2*PI())+(4.7*D19*(1+(0.00375*fi_TE.r))) -> 7.546545307 | E60: 1/rad
B61: Theoretical lift curve slope of the airfoil at the tip | C61: cL,a,t,theory | D61: =(2*PI())+(4.7*D20*(1+(0.00375*fi_TE.t))) -> 6.878910307 | E61: 1/rad
B62: Lift curve slope of the airfoil at the root | C62: cL,a,r | D62: =cl_alph_root -> 9.033479093 | E62: 1/rad
B63: Lift curve slope of the airfoil at the tip | C63: cL,a,t | D63: =cl_alpha_tip -> 10.23730474 | E63: 1/rad
B64: Kinematic viscosity in flight altitude | C64: n | D64: =kin_vis -> 4.573854902 | E64: E-5*m²/s
B65: Speed of sound in flight altitude | C65: a | D65: =SoSOUND -> 295.0695567 | E65: m/s
B67: Example (no input, do not edit)
B69: General Input
B70: Aspect ratio | C70: A | D70: 10 | E70: -
B71: Taper ratio | C71: λ | D71: 0.16 | E71: -
B72: Quarter chord sweep | C72: j0.25 | D72: 25 | E72: deg
B73: Mach number | C73: M | D73: 0.8 | E73: -
B74: Twist | C74: et | D74: -10 | E74: deg
B75: Wing lift coefficient | C75: CL | D75: 1.366 | E75: -
B77: Additional Input
B78: Mean geometric chord | C78: cg | D78: 3.5 | E78: m
B79: Flight altitude | C79: h | D79: 12 | E79: km
B80: Relative thickness at the root | C80: (t/c)r | D80: 0.24 | E80: -
B81: Relative thickness at the tip | C81: (t/c)t | D81: 0.12 | E81: -
B82: Airfoil trailing edge angle at the root | C82: fTE,r | D82: 32 | E82: deg
B83: Airfoil trailing edge angle at the tip | C83: fTE,t | D83: 15 | E83: deg
B84: Maximum section lift coefficient at the root | C84: cL,max,r | D84: 1.3 | E84: -
B85: Maximum section lift coefficient at the tip | C85: cL,max,t | D85: 1.7 | E85: -
B87: Airfoil at root | D87: NACA 2424 | E87: -
B88: Airfoil at tip | D88: NACA 2412 | E88: -
B90: Estimating (for NACA 4-digit airfoils, based on Mason 2017):
B92: Airfoil trailing edge angle at the root | C92: fTE,r | D92: =135.71*D80-0.4286 -> 32.1418 | E92: deg
B93: Airfoil trailing edge angle at the tip | C93: fTE,t | D93: =135.71*D81-0.4286 -> 15.8566 | E93: deg
B122: Curiosity Number 21. Comparison of some key airfoil geometric characteristics
B123: W.H. Mason, August 8, 2017
B124: https://archive.aoe.vt.edu/mason/Mason_f/C21AirfoilTEandLE.pdf
B146: Plot Tables
B147: Diederichs sweep correction function | C147: f | D147: =f(phi_bet,D150) -> 0.8425747823 | E147: =f(phi_bet,E150) -> 0.8496859499 | F147: 0.8579947178 | G147: 0.8673755133 | H147: 0.8777087578 | I147: 0.8888807189 | J147: 0.9007833617 | K147: 0.9133142019 | L147: 0.9263761571 | M147: 0.9398774008 | N147: 0.953731215 | O147: 0.9678558437 | P147: 0.9821743471 | Q147: 0.9966144557 | R147: 1.011108424 | S147: 1.025592888 | T147: 1.040008717 | U147: 1.054300871 | V147: 1.068418256 | W147: 1.082313581 | X147: 1.095943214 | Y147: 1.109267039 | Z147: 1.122248313 | AA147: 1.134853524 | AB147: 1.147052248 | AC147: 1.158817008 | AD147: 1.170123133 | AE147: 1.180948616 | AF147: 1.191273973 | AG147: 1.201082103 | AH147: 1.210358149 | AI147: 1.219089356 | AJ147: =f(phi_bet,AJ150) -> 1.227264934 | AK147: 1.234875917 | AL147: 1.241915025 | AM147: 1.248376525 | AN147: 1.254256093 | AO147: 1.25955068 | AP147: 1.264258366 | AQ147: 1.268378232 | AR147: 1.271910219 | AS147: 1.274854989 | AT147: 1.277213796 | AU147: 1.278988344 | AV147: 1.280180652 | AW147: 1.280792925 | AX147: 1.280827411 | AY147: 1.280286271 | AZ147: 1.279171448 | BA147: 1.277484524 | BB147: 1.275226597 | BC147: 1.272398141 | BD147: 1.268998876 | BE147: 1.265027634 | BF147: 1.260482231 | BG147: 1.255359328 | BH147: 1.249654308 | BI147: 1.243361138 | BJ147: 1.236472242 | BK147: 1.22897837 | BL147: 1.220868468 | BM147: 1.212129546 | BN147: 1.202746553 | BO147: 1.192702245 | BP147: =f(phi_bet,BP150) -> 1.181977054 | BQ147: 1.170548966 | BR147: 1.158393388 | BS147: 1.145483021 | BT147: 1.131787735 | BU147: 1.117274438 | BV147: 1.101906953 | BW147: 1.085645889 | BX147: 1.068448518 | BY147: 1.050268647 | BZ147: 1.03105649 | CA147: 1.010758551 | CB147: 0.9893174894 | CC147: 0.9666720044 | CD147: 0.9427567051 | CE147: 0.9175019894 | CF147: 0.8908339202 | CG147: 0.8626741019 | CH147: 0.8329395584 | CI147: 0.8015426103 | CJ147: 0.7683907531 | CK147: 0.7333865352 | CL147: 0.6964274371 | CM147: 0.6574057499 | CN147: 0.6162084547 | CO147: 0.5727171025 | CP147: 0.5268076939 | CQ147: 0.5220788174 | CR147: 0.5173243356 | CS147: 0.5125441152 | CT147: 0.507738022 | CU147: 0.5029059216 | CV147: =f(phi_bet,CV150) -> 0.4980476787 | CW147: 0.4931631577 | CX147: 0.4882522223 | CY147: 0.4833147354 | CZ147: 0.4783505597 | DA147: 0.473359557 | DB147: 0.4683415887 | DC147: 0.4632965154 | DD147: 0.4582241974 | DE147: 0.4531244941 | DF147: 0.4479972646 | DG147: 0.4428423671 | DH147: 0.4376596594 | DI147: 0.4324489986 | DJ147: 0.4272102414 | DK147: 0.4219432436 | DL147: 0.4166478607 | DM147: 0.4113239473 | DN147: 0.4059713576 | DO147: 0.4005899451 | DP147: 0.3951795628 | DQ147: 0.3897400629 | DR147: 0.3842712972 | DS147: 0.3787731168 | DT147: 0.3732453722 | DU147: 0.3676879131 | DV147: 0.362100589 | DW147: 0.3564832483 | DX147: 0.3508357392 | DY147: 0.3451579091 | DZ147: 0.3394496046 | EA147: 0.3337106721 | EB147: =f(phi_bet,EB150) -> 0.327940957 | EC147: 0.3221403043 | ED147: 0.3163085582 | EE147: 0.3104455625 | EF147: 0.3045511602 | EG147: 0.2986251936 | EH147: 0.2926675046 | EI147: 0.2866779344 | EJ147: 0.2806563234 | EK147: 0.2746025116 | EL147: 0.2685163382 | EM147: 0.2623976419 | EN147: 0.2562462606 | EO147: 0.2500620317 | EP147: 0.243844792 | EQ147: 0.2375943775 | ER147: 0.2313106235 | ES147: 0.2249933651 | ET147: 0.2186424362 | EU147: 0.2122576704 | EV147: 0.2058389005 | EW147: 0.1993859589 | EX147: 0.192898677 | EY147: 0.1863768857 | EZ147: 0.1798204154 | FA147: 0.1732290957 | FB147: 0.1666027554 | FC147: 0.1599412231 | FD147: 0.1532443262 | FE147: 0.1465118919 | FF147: 0.1397437464 | FG147: 0.1329397154 | FH147: =f(phi_bet,FH150) -> 0.126099624 | FI147: 0.1192232966 | FJ147: 0.1123105569 | FK147: 0.1053612278 | FL147: 0.09837513184 | FM147: 0.09135209067 | FN147: 0.08429192537 | FO147: 0.0771944563 | FP147: 0.07005950319 | FQ147: 0.06288688507 | FR147: 0.05567642034 | FS147: 0.04842792668 | FT147: 0.04114122113 | FU147: 0.03381612005 | FV147: 0.0264524391 | FW147: 0.0190499933 | FX147: 0.01160859698 | FY147: 0.004128063764 | FZ147: -0.003391793366 | GA147: -0.01095116213 | GB147: -0.01855023092 | GC147: -0.02618918883 | GD147: -0.03386822561 | GE147: -0.04158753173 | GF147: -0.04934729832 | GG147: -0.05714771721 | GH147: -0.06498898091 | GI147: -0.07287128264 | GJ147: -0.0807948163 | GK147: -0.08875977647 | GL147: -0.09676635845
B148: Section max. lift of the airfoil minus required lift | D148: =D177-D162 -> 0.1435235164 | E148: =E177-E162 -> 0.1432559412 | F148: 0.1426336001 | G148: 0.1416825715 | H148: 0.1404279432 | I148: 0.1388938262 | J148: 0.1371033679 | K148: 0.1350787665 | L148: 0.1328412845 | M148: 0.1304112635 | N148: 0.1278081388 | O148: 0.1250504543 | P148: 0.1221558774 | Q148: 0.1191412151 | R148: 0.1160224292 | S148: 0.1128146529 | T148: 0.1095322074 | U148: 0.1061886183 | V148: 0.1027966333 | W148: 0.09936824016 | X148: 0.0959146843 | Y148: 0.09244648794 | Z148: 0.08897346916 | AA148: 0.08550476159 | AB148: 0.08204883484 | AC148: 0.07861351538 | AD148: 0.07520600822 | AE148: 0.07183291921 | AF148: 0.06850027822 | AG148: 0.06521356305 | AH148: 0.06197772429 | AI148: 0.05879721117 | AJ148: 0.05567599833 | AK148: 0.05261761389 | AL148: 0.04962516859 | AM148: 0.04670138631 | AN148: 0.04384863605 | AO148: 0.04106896537 | AP148: 0.03836413563 | AQ148: 0.03573565897 | AR148: 0.0331848374 | AS148: 0.03071280399 | AT148: 0.02832056649 | AU148: 0.02600905362 | AV148: 0.02377916417 | AW148: 0.02163181929 | AX148: 0.01956801834 | AY148: 0.01758889838 | AZ148: 0.01569579815 | BA148: 0.01389032647 | BB148: 0.01217443605 | BC148: 0.01055050284 | BD148: 0.009021411892 | BE148: 0.007590650282 | BF148: 0.006262407912 | BG148: 0.005041687182 | BH148: 0.003934422531 | BI148: 0.002947611075 | BJ148: 0.002089455684 | BK148: 0.001369522094 | BL148: 0.0007989118398 | BM148: 0.0003904530807 | BN148: 0.0001589117258 | BO148: 0.0001212256174 | BP148: 0.0002967649993 | BQ148: =BQ177-BQ162 -> 0.0007076230176 | BR148: 0.001378940635 | BS148: 0.002339271105 | BT148: 0.003620990046 | BU148: 0.005260758287 | BV148: 0.007300045949 | BW148: 0.009785727902 | BX148: 0.0127707627 | BY148: 0.01631496957 | BZ148: 0.02048592114 | CA148: 0.02535997336 | CB148: 0.03102345887 | CC148: 0.03757407637 | CD148: 0.04512251622 | CE148: 0.0537943727 | CF148: 0.06373240682 | CG148: 0.07509924093 | CH148: 0.08808059026 | CI148: 0.1028891684 | CJ148: 0.1197694487 | CK148: 0.1390035255 | CL148: 0.1609184105 | CM148: 0.185895233 | CN148: 0.2143810147 | CO148: 0.2469040081 | CP148: 0.2840941074 | CQ148: 0.2880977371 | CR148: 0.2921563353 | CS148: 0.2962707596 | CT148: 0.3004418851 | CU148: 0.3046706053 | CV148: 0.3089578318 | CW148: 0.3133044956 | CX148: 0.3177115473 | CY148: 0.3221799578 | CZ148: 0.3267107187 | DA148: 0.3313048433 | DB148: 0.335963367 | DC148: 0.340687348 | DD148: 0.3454778681 | DE148: 0.3503360335 | DF148: 0.3552629754 | DG148: 0.3602598512 | DH148: 0.3653278448 | DI148: 0.3704681681 | DJ148: 0.3756820614 | DK148: 0.380970795 | DL148: 0.3863356695 | DM148: 0.3917780175 | DN148: 0.3972992047 | DO148: 0.4029006306 | DP148: 0.4085837304 | DQ148: 0.414349976 | DR148: 0.4202008773 | DS148: 0.4261379841 | DT148: 0.4321628872 | DU148: 0.4382772204 | DV148: 0.4444826622 | DW148: 0.4507809374 | DX148: 0.4571738193 | DY148: 0.4636631319 | DZ148: 0.4702507519 | EA148: 0.4769386109 | EB148: 0.4837286983 | EC148: =EC177-EC162 -> 0.4906230637 | ED148: 0.49762382 | EE148: 0.5047331459 | EF148: 0.5119532899 | EG148: 0.5192865731 | EH148: 0.5267353933 | EI148: 0.5343022288 | EJ148: 0.541989643 | EK148: 0.5498002886 | EL148: 0.557736913 | EM148: 0.5658023633 | EN148: 0.5739995924 | EO148: 0.5823316654 | EP148: 0.5908017661 | EQ148: 0.5994132047 | ER148: 0.6081694258 | ES148: 0.6170740174 | ET148: 0.6261307205 | EU148: 0.6353434399 | EV148: 0.6447162555 | EW148: 0.6542534358 | EX148: 0.6639594514 | EY148: 0.6738389915 | EZ148: 0.6838969807 | FA148: 0.694138599 | FB148: 0.7045693032 | FC148: 0.7151948516 | FD148: 0.7260213311 | FE148: 0.7370551882 | FF148: 0.7483032643 | FG148: 0.7597728347 | FH148: 0.7714716551 | FI148: 0.7834080126 | FJ148: 0.7955907864 | FK148: 0.808029517 | FL148: 0.8207344867 | FM148: 0.8337168146 | FN148: 0.8469885676 | FO148: 0.8605628927 | FP148: 0.8744541742 | FQ148: 0.8886782236 | FR148: 0.9032525093 | FS148: 0.9181964381 | FT148: 0.9335317038 | FU148: 0.9492827215 | FV148: 0.965477179 | FW148: 0.9821467426 | FX148: 0.9993279773 | FY148: 1.017063565 | FZ148: 1.035403948 | GA148: 1.054409607 | GB148: 1.07415427 | GC148: 1.094729627 | GD148: 1.116252439 | GE148: 1.13887581 | GF148: 1.162807998 | GG148: 1.188346106 | GH148: 1.215942248 | GI148: 1.246351434 | GJ148: 1.281034861 | GK148: 1.323738178 | GL148: 1.413527452 | GM148: =MIN(D148:GL148) -> 0.0001212256174
B150: Non dimensional spanwise station | C150: h | D150: 0 | E150: 0.01 | F150: 0.02 | G150: 0.03 | H150: 0.04 | I150: 0.05 | J150: 0.06 | K150: 0.07 | L150: 0.08 | M150: 0.09 | N150: 0.1 | O150: 0.11 | P150: 0.12 | Q150: 0.13 | R150: 0.14 | S150: 0.15 | T150: 0.16 | U150: 0.17 | V150: 0.18 | W150: 0.19 | X150: 0.2 | Y150: 0.21 | Z150: 0.22 | AA150: 0.23 | AB150: 0.24 | AC150: 0.25 | AD150: 0.26 | AE150: 0.27 | AF150: 0.28 | AG150: 0.29 | AH150: 0.3 | AI150: 0.31 | AJ150: 0.32 | AK150: 0.33 | AL150: 0.34 | AM150: 0.35 | AN150: 0.36 | AO150: 0.37 | AP150: 0.38 | AQ150: 0.39 | AR150: 0.4 | AS150: 0.41 | AT150: 0.42 | AU150: 0.43 | AV150: 0.44 | AW150: 0.45 | AX150: 0.46 | AY150: 0.47 | AZ150: 0.48 | BA150: 0.49 | BB150: 0.5 | BC150: 0.51 | BD150: 0.52 | BE150: 0.53 | BF150: 0.54 | BG150: 0.55 | BH150: 0.56 | BI150: 0.57 | BJ150: 0.58 | BK150: 0.59 | BL150: 0.6 | BM150: 0.61 | BN150: 0.62 | BO150: 0.63 | BP150: 0.64 | BQ150: 0.65 | BR150: 0.66 | BS150: 0.67 | BT150: 0.68 | BU150: 0.69 | BV150: 0.7 | BW150: 0.71 | BX150: 0.72 | BY150: 0.73 | BZ150: 0.74 | CA150: 0.75 | CB150: 0.76 | CC150: 0.77 | CD150: 0.78 | CE150: 0.79 | CF150: 0.8 | CG150: 0.81 | CH150: 0.82 | CI150: 0.83 | CJ150: 0.84 | CK150: 0.85 | CL150: 0.86 | CM150: 0.87 | CN150: 0.88 | CO150: 0.89 | CP150: 0.9 | CQ150: 0.901 | CR150: 0.902 | CS150: 0.903 | CT150: 0.904 | CU150: 0.905 | CV150: 0.906 | CW150: 0.907 | CX150: 0.908 | CY150: 0.909 | CZ150: 0.91 | DA150: 0.911 | DB150: 0.912 | DC150: 0.913 | DD150: 0.914 | DE150: 0.915 | DF150: 0.916 | DG150: 0.917 | DH150: 0.918 | DI150: 0.919 | DJ150: 0.92 | DK150: 0.921 | DL150: 0.922 | DM150: 0.923 | DN150: 0.924 | DO150: 0.925 | DP150: 0.926 | DQ150: 0.927 | DR150: 0.928 | DS150: 0.929 | DT150: 0.93 | DU150: 0.931 | DV150: 0.932 | DW150: 0.933 | DX150: 0.934 | DY150: 0.935 | DZ150: 0.936 | EA150: 0.937 | EB150: 0.938 | EC150: 0.939 | ED150: 0.94 | EE150: 0.941 | EF150: 0.942 | EG150: 0.943 | EH150: 0.944 | EI150: 0.945 | EJ150: 0.946 | EK150: 0.947 | EL150: 0.948 | EM150: 0.949 | EN150: 0.95 | EO150: 0.951 | EP150: 0.952 | EQ150: 0.953 | ER150: 0.954 | ES150: 0.955 | ET150: 0.956 | EU150: 0.957 | EV150: 0.958 | EW150: 0.959 | EX150: 0.96 | EY150: 0.961 | EZ150: 0.962 | FA150: 0.963 | FB150: 0.964 | FC150: 0.965 | FD150: 0.966 | FE150: 0.967 | FF150: 0.968 | FG150: 0.969 | FH150: 0.97 | FI150: 0.971 | FJ150: 0.972 | FK150: 0.973 | FL150: 0.974 | FM150: 0.975 | FN150: 0.976 | FO150: 0.977 | FP150: 0.978 | FQ150: 0.979 | FR150: 0.98 | FS150: 0.981 | FT150: 0.982 | FU150: 0.983 | FV150: 0.984 | FW150: 0.985 | FX150: 0.986 | FY150: 0.987 | FZ150: 0.988 | GA150: 0.989 | GB150: 0.99 | GC150: 0.991 | GD150: 0.992 | GE150: 0.993 | GF150: 0.994 | GG150: 0.995 | GH150: 0.996 | GI150: 0.997 | GJ150: 0.998 | GK150: 0.999 | GL150: 1
B151: Chord | C151: c | D151: =c_r+((c_t-c_r)*D150) -> 6.034482759 | E151: 5.983793103 | F151: 5.933103448 | G151: 5.882413793 | H151: 5.831724138 | I151: 5.781034483 | J151: 5.730344828 | K151: 5.679655172 | L151: 5.628965517 | M151: 5.578275862 | N151: 5.527586207 | O151: 5.476896552 | P151: 5.426206897 | Q151: 5.375517241 | R151: 5.324827586 | S151: 5.274137931 | T151: 5.223448276 | U151: 5.172758621 | V151: 5.122068966 | W151: 5.07137931 | X151: 5.020689655 | Y151: 4.97 | Z151: 4.919310345 | AA151: 4.86862069 | AB151: 4.817931034 | AC151: 4.767241379 | AD151: 4.716551724 | AE151: 4.665862069 | AF151: 4.615172414 | AG151: 4.564482759 | AH151: 4.513793103 | AI151: 4.463103448 | AJ151: =c_r+((c_t-c_r)*AJ150) -> 4.412413793 | AK151: 4.361724138 | AL151: 4.311034483 | AM151: 4.260344828 | AN151: 4.209655172 | AO151: 4.158965517 | AP151: 4.108275862 | AQ151: 4.057586207 | AR151: 4.006896552 | AS151: 3.956206897 | AT151: 3.905517241 | AU151: 3.854827586 | AV151: 3.804137931 | AW151: 3.753448276 | AX151: 3.702758621 | AY151: 3.652068966 | AZ151: 3.60137931 | BA151: 3.550689655 | BB151: 3.5 | BC151: 3.449310345 | BD151: 3.39862069 | BE151: 3.347931034 | BF151: 3.297241379 | BG151: 3.246551724 | BH151: 3.195862069 | BI151: 3.145172414 | BJ151: 3.094482759 | BK151: 3.043793103 | BL151: 2.993103448 | BM151: 2.942413793 | BN151: 2.891724138 | BO151: 2.841034483 | BP151: =c_r+((c_t-c_r)*BP150) -> 2.790344828 | BQ151: 2.739655172 | BR151: 2.688965517 | BS151: 2.638275862 | BT151: 2.587586207 | BU151: 2.536896552 | BV151: 2.486206897 | BW151: 2.435517241 | BX151: 2.384827586 | BY151: 2.334137931 | BZ151: 2.283448276 | CA151: 2.232758621 | CB151: 2.182068966 | CC151: 2.13137931 | CD151: 2.080689655 | CE151: 2.03 | CF151: 1.979310345 | CG151: 1.92862069 | CH151: 1.877931034 | CI151: 1.827241379 | CJ151: 1.776551724 | CK151: 1.725862069 | CL151: 1.675172414 | CM151: 1.624482759 | CN151: 1.573793103 | CO151: 1.523103448 | CP151: 1.472413793 | CQ151: 1.467344828 | CR151: 1.462275862 | CS151: 1.457206897 | CT151: 1.452137931 | CU151: 1.447068966 | CV151: =c_r+((c_t-c_r)*CV150) -> 1.442 | CW151: 1.436931034 | CX151: 1.431862069 | CY151: 1.426793103 | CZ151: 1.421724138 | DA151: 1.416655172 | DB151: 1.411586207 | DC151: 1.406517241 | DD151: 1.401448276 | DE151: 1.39637931 | DF151: 1.391310345 | DG151: 1.386241379 | DH151: 1.381172414 | DI151: 1.376103448 | DJ151: 1.371034483 | DK151: 1.365965517 | DL151: 1.360896552 | DM151: 1.355827586 | DN151: 1.350758621 | DO151: 1.345689655 | DP151: 1.34062069 | DQ151: 1.335551724 | DR151: 1.330482759 | DS151: 1.325413793 | DT151: 1.320344828 | DU151: 1.315275862 | DV151: 1.310206897 | DW151: 1.305137931 | DX151: 1.300068966 | DY151: 1.295 | DZ151: 1.289931034 | EA151: 1.284862069 | EB151: =c_r+((c_t-c_r)*EB150) -> 1.279793103 | EC151: 1.274724138 | ED151: 1.269655172 | EE151: 1.264586207 | EF151: 1.259517241 | EG151: 1.254448276 | EH151: 1.24937931 | EI151: 1.244310345 | EJ151: 1.239241379 | EK151: 1.234172414 | EL151: 1.229103448 | EM151: 1.224034483 | EN151: 1.218965517 | EO151: 1.213896552 | EP151: 1.208827586 | EQ151: 1.203758621 | ER151: 1.198689655 | ES151: 1.19362069 | ET151: 1.188551724 | EU151: 1.183482759 | EV151: 1.178413793 | EW151: 1.173344828 | EX151: 1.168275862 | EY151: 1.163206897 | EZ151: 1.158137931 | FA151: 1.153068966 | FB151: 1.148 | FC151: 1.142931034 | FD151: 1.137862069 | FE151: 1.132793103 | FF151: 1.127724138 | FG151: 1.122655172 | FH151: =c_r+((c_t-c_r)*FH150) -> 1.117586207 | FI151: 1.112517241 | FJ151: 1.107448276 | FK151: 1.10237931 | FL151: 1.097310345 | FM151: 1.092241379 | FN151: 1.087172414 | FO151: 1.082103448 | FP151: 1.077034483 | FQ151: 1.071965517 | FR151: 1.066896552 | FS151: 1.061827586 | FT151: 1.056758621 | FU151: 1.051689655 | FV151: 1.04662069 | FW151: 1.041551724 | FX151: 1.036482759 | FY151: 1.031413793 | FZ151: 1.026344828 | GA151: 1.021275862 | GB151: 1.016206897 | GC151: 1.011137931 | GD151: 1.006068966 | GE151: 1.001 | GF151: 0.9959310345 | GG151: 0.990862069 | GH151: 0.9857931034 | GI151: 0.9807241379 | GJ151: 0.9756551724 | GK151: 0.9705862069 | GL151: 0.9655172414
B152: Spanwise section lift gradient distribution | C152: cL,a | D152: =cl_alph_root+((cl_alpha_tip-cl_alph_root)*D150) -> 9.033479093 | E152: 9.04551735 | F152: 9.057555606 | G152: 9.069593863 | H152: 9.081632119 | I152: 9.093670376 | J152: 9.105708632 | K152: 9.117746889 | L152: 9.129785145 | M152: 9.141823402 | N152: 9.153861658 | O152: 9.165899915 | P152: 9.177938171 | Q152: 9.189976428 | R152: 9.202014684 | S152: 9.214052941 | T152: 9.226091197 | U152: 9.238129454 | V152: 9.25016771 | W152: 9.262205967 | X152: 9.274244223 | Y152: 9.28628248 | Z152: 9.298320736 | AA152: 9.310358993 | AB152: 9.322397249 | AC152: 9.334435506 | AD152: 9.346473762 | AE152: 9.358512019 | AF152: 9.370550275 | AG152: 9.382588532 | AH152: 9.394626788 | AI152: 9.406665045 | AJ152: =cl_alph_root+((cl_alpha_tip-cl_alph_root)*AJ150) -> 9.418703301 | AK152: 9.430741558 | AL152: 9.442779814 | AM152: 9.454818071 | AN152: 9.466856327 | AO152: 9.478894584 | AP152: 9.49093284 | AQ152: 9.502971097 | AR152: 9.515009353 | AS152: 9.527047609 | AT152: 9.539085866 | AU152: 9.551124122 | AV152: 9.563162379 | AW152: 9.575200635 | AX152: 9.587238892 | AY152: 9.599277148 | AZ152: 9.611315405 | BA152: 9.623353661 | BB152: 9.635391918 | BC152: 9.647430174 | BD152: 9.659468431 | BE152: 9.671506687 | BF152: 9.683544944 | BG152: 9.6955832 | BH152: 9.707621457 | BI152: 9.719659713 | BJ152: 9.73169797 | BK152: 9.743736226 | BL152: 9.755774483 | BM152: 9.767812739 | BN152: 9.779850996 | BO152: 9.791889252 | BP152: =cl_alph_root+((cl_alpha_tip-cl_alph_root)*BP150) -> 9.803927509 | BQ152: 9.815965765 | BR152: 9.828004022 | BS152: 9.840042278 | BT152: 9.852080535 | BU152: 9.864118791 | BV152: 9.876157048 | BW152: 9.888195304 | BX152: 9.900233561 | BY152: 9.912271817 | BZ152: 9.924310074 | CA152: 9.93634833 | CB152: 9.948386587 | CC152: 9.960424843 | CD152: 9.9724631 | CE152: 9.984501356 | CF152: 9.996539613 | CG152: 10.00857787 | CH152: 10.02061613 | CI152: 10.03265438 | CJ152: 10.04469264 | CK152: 10.0567309 | CL152: 10.06876915 | CM152: 10.08080741 | CN152: 10.09284566 | CO152: 10.10488392 | CP152: 10.11692218 | CQ152: 10.118126 | CR152: 10.11932983 | CS152: 10.12053365 | CT152: 10.12173748 | CU152: 10.12294131 | CV152: =cl_alph_root+((cl_alpha_tip-cl_alph_root)*CV150) -> 10.12414513 | CW152: 10.12534896 | CX152: 10.12655278 | CY152: 10.12775661 | CZ152: 10.12896043 | DA152: 10.13016426 | DB152: 10.13136809 | DC152: 10.13257191 | DD152: 10.13377574 | DE152: 10.13497956 | DF152: 10.13618339 | DG152: 10.13738721 | DH152: 10.13859104 | DI152: 10.13979486 | DJ152: 10.14099869 | DK152: 10.14220252 | DL152: 10.14340634 | DM152: 10.14461017 | DN152: 10.14581399 | DO152: 10.14701782 | DP152: 10.14822164 | DQ152: 10.14942547 | DR152: 10.1506293 | DS152: 10.15183312 | DT152: 10.15303695 | DU152: 10.15424077 | DV152: 10.1554446 | DW152: 10.15664842 | DX152: 10.15785225 | DY152: 10.15905608 | DZ152: 10.1602599 | EA152: 10.16146373 | EB152: =cl_alph_root+((cl_alpha_tip-cl_alph_root)*EB150) -> 10.16266755 | EC152: 10.16387138 | ED152: 10.1650752 | EE152: 10.16627903 | EF152: 10.16748285 | EG152: 10.16868668 | EH152: 10.16989051 | EI152: 10.17109433 | EJ152: 10.17229816 | EK152: 10.17350198 | EL152: 10.17470581 | EM152: 10.17590963 | EN152: 10.17711346 | EO152: 10.17831729 | EP152: 10.17952111 | EQ152: 10.18072494 | ER152: 10.18192876 | ES152: 10.18313259 | ET152: 10.18433641 | EU152: 10.18554024 | EV152: 10.18674407 | EW152: 10.18794789 | EX152: 10.18915172 | EY152: 10.19035554 | EZ152: 10.19155937 | FA152: 10.19276319 | FB152: 10.19396702 | FC152: 10.19517084 | FD152: 10.19637467 | FE152: 10.1975785 | FF152: 10.19878232 | FG152: 10.19998615 | FH152: =cl_alph_root+((cl_alpha_tip-cl_alph_root)*FH150) -> 10.20118997 | FI152: 10.2023938 | FJ152: 10.20359762 | FK152: 10.20480145 | FL152: 10.20600528 | FM152: 10.2072091 | FN152: 10.20841293 | FO152: 10.20961675 | FP152: 10.21082058 | FQ152: 10.2120244 | FR152: 10.21322823 | FS152: 10.21443206 | FT152: 10.21563588 | FU152: 10.21683971 | FV152: 10.21804353 | FW152: 10.21924736 | FX152: 10.22045118 | FY152: 10.22165501 | FZ152: 10.22285883 | GA152: 10.22406266 | GB152: 10.22526649 | GC152: 10.22647031 | GD152: 10.22767414 | GE152: 10.22887796 | GF152: 10.23008179 | GG152: 10.23128561 | GH152: 10.23248944 | GI152: 10.23369327 | GJ152: 10.23489709 | GK152: 10.23610092 | GL152: 10.23730474 | GM152: =AVERAGE(D152:GL152) -> 9.890653377 | GO152: averaging of the lift curve slope NOT weighted with respect to chord
D153: =D152*D151 -> 54.51237384 | E153: =E152*E151 -> 54.12650434 | F153: =F152*F151 -> 53.7394144 | G153: 53.35110404 | H153: 52.96157324 | I153: 52.57082202 | J153: 52.17885036 | K153: 51.78565828 | L153: 51.39124576 | M153: 50.99561282 | N153: 50.59875944 | O153: 50.20068564 | P153: 49.8013914 | Q153: 49.40087674 | R153: 48.99914164 | S153: 48.59618611 | T153: 48.19201016 | U153: 47.78661377 | V153: 47.37999695 | W153: 46.97215971 | X153: 46.56310203 | Y153: 46.15282392 | Z153: 45.74132539 | AA153: 45.32860642 | AB153: 44.91466702 | AC153: 44.4995072 | AD153: 44.08312694 | AE153: 43.66552625 | AF153: 43.24670513 | AG153: 42.82666358 | AH153: 42.40540161 | AI153: 41.9829192 | AJ153: 41.55921636 | AK153: 41.13429309 | AL153: 40.70814939 | AM153: 40.28078526 | AN153: 39.8522007 | AO153: 39.42239571 | AP153: 38.9913703 | AQ153: 38.55912445 | AR153: 38.12565817 | AS153: 37.69097146 | AT153: 37.25506432 | AU153: 36.81793675 | AV153: 36.37958875 | AW153: 35.94002032 | AX153: 35.49923146 | AY153: 35.05722217 | AZ153: 34.61399244 | BA153: 34.16954229 | BB153: 33.72387171 | BC153: 33.2769807 | BD153: 32.82886926 | BE153: 32.37953739 | BF153: 31.92898509 | BG153: 31.47721236 | BH153: 31.02421919 | BI153: 30.5700056 | BJ153: 30.11457158 | BK153: 29.65791713 | BL153: 29.20004225 | BM153: 28.74094693 | BN153: 28.28063119 | BO153: 27.81909502 | BP153: 27.35633841 | BQ153: 26.89236138 | BR153: =BR152*BR151 -> 26.42716392 | BS153: 25.96074602 | BT153: 25.4931077 | BU153: 25.02424895 | BV153: 24.55416976 | BW153: 24.08287015 | BX153: 23.61035011 | BY153: 23.13660963 | BZ153: 22.66164873 | CA153: 22.18546739 | CB153: 21.70806563 | CC153: 21.22944343 | CD153: 20.74960081 | CE153: 20.26853775 | CF153: 19.78625427 | CG153: 19.30275035 | CH153: 18.81802601 | CI153: 18.33208123 | CJ153: 17.84491603 | CK153: 17.35653039 | CL153: 16.86692432 | CM153: 16.37609783 | CN153: 15.8840509 | CO153: 15.39078354 | CP153: 14.89629576 | DA153: 14.3509496 | DJ153: 13.90365889 | DT153: 13.40550982 | ED153: 12.90614031 | EN153: =EN152*EN151 -> 12.40555037 | EX153: =EX152*EX151 -> 11.90374001 | FH153: =FH152*FH151 -> 11.40070921 | FR153: =FR152*FR151 -> 10.89645798 | GB153: =GB152*GB151 -> 10.39098632 | GL153: =GL152*GL151 -> 9.884294234 | GM153: =AVERAGE(D153:GL153)/c_g -> 9.487056411 | GO153: averaging of the lift curve slope is done weighted with respect to chord – this is the better option
B154: Anderson's lift function | C154: La | D154: =(C_1*D151/c_g)+(C_2*(4/PI())*SQRT(1-POWER(D150,2)))+(C_3*D147) -> 1.310808629 | E154: =(C_1*E151/c_g)+(C_2*(4/PI())*SQRT(1-POWER(E150,2)))+(C_3*E147) -> 1.307663079 | F154: 1.304826928 | G154: 1.302263096 | H154: 1.299936258 | I154: 1.297812802 | J154: 1.295860782 | K154: 1.29404988 | L154: 1.292351357 | M154: 1.29073801 | N154: 1.289184133 | O154: 1.287665467 | P154: 1.286159164 | Q154: 1.284643736 | R154: 1.283099018 | S154: 1.281506123 | T154: 1.279847396 | U154: 1.278106377 | V154: 1.276267751 | W154: 1.274317313 | X154: 1.272241917 | Y154: 1.270029441 | Z154: 1.267668739 | AA154: 1.265149601 | AB154: 1.262462708 | AC154: 1.259599593 | AD154: 1.256552598 | AE154: 1.253314829 | AF154: 1.249880114 | AG154: 1.246242965 | AH154: 1.242398532 | AI154: 1.238342559 | AJ154: =(C_1*AJ151/c_g)+(C_2*(4/PI())*SQRT(1-POWER(AJ150,2)))+(C_3*AJ147) -> 1.234071349 | AK154: 1.229581715 | AL154: 1.22487094 | AM154: 1.219936735 | AN154: 1.2147772 | AO154: 1.209390776 | AP154: 1.203776208 | AQ154: 1.1979325 | AR154: 1.191858875 | AS154: 1.185554731 | AT154: 1.1790196 | AU154: 1.172253104 | AV154: 1.165254916 | AW154: 1.158024715 | AX154: 1.150562142 | AY154: 1.142866763 | AZ154: 1.134938019 | BA154: 1.126775188 | BB154: 1.11837734 | BC154: 1.109743295 | BD154: 1.100871576 | BE154: 1.091760368 | BF154: 1.082407471 | BG154: 1.072810257 | BH154: 1.062965624 | BI154: 1.05286995 | BJ154: 1.042519045 | BK154: 1.031908107 | BL154: 1.021031667 | BM154: 1.009883547 | BN154: 0.9984568048 | BO154: 0.9867436835 | BP154: =(C_1*BP151/c_g)+(C_2*(4/PI())*SQRT(1-POWER(BP150,2)))+(C_3*BP147) -> 0.9747355575 | BQ154: 0.9624228771 | BR154: 0.949795111 | BS154: 0.9368406862 | BT154: 0.9235469248 | BU154: 0.9098999773 | BV154: 0.895884752 | BW154: 0.8814848391 | BX154: 0.8666824297 | BY154: 0.8514582266 | BZ154: 0.8357913474 | CA154: 0.8196592174 | CB154: 0.8030374489 | CC154: 0.7858997059 | CD154: 0.7682175489 | CE154: 0.7499602553 | CF154: 0.7310946094 | CG154: 0.7115846525 | CH154: 0.691391383 | CI154: 0.6704723887 | CJ154: 0.648781391 | CK154: 0.6262676698 | CL154: 0.6028753238 | CM154: 0.5785423008 | CN154: 0.5531990983 | CO154: 0.5267669811 | CP154: 0.4991554649 | CQ154: 0.4963255283 | CR154: 0.4934826401 | CS154: 0.4906266822 | CT154: 0.4877575348 | CU154: 0.4848750755 | CV154: =(C_1*CV151/c_g)+(C_2*(4/PI())*SQRT(1-POWER(CV150,2)))+(C_3*CV147) -> 0.4819791797 | CW154: 0.4790697204 | CX154: 0.4761465681 | CY154: 0.4732095907 | CZ154: 0.4702586533 | DA154: 0.4672936184 | DB154: 0.4643143455 | DC154: 0.4613206913 | DD154: 0.4583125091 | DE154: 0.4552896492 | DF154: 0.4522519585 | DG154: 0.4491992804 | DH154: 0.4461314547 | DI154: 0.4430483174 | DJ154: 0.4399497006 | DK154: 0.4368354323 | DL154: 0.4337053364 | DM154: 0.430559232 | DN154: 0.4273969339 | DO154: 0.4242182519 | DP154: 0.4210229908 | DQ154: 0.41781095 | DR154: 0.4145819235 | DS154: 0.4113356995 | DT154: 0.40807206 | DU154: 0.4047907806 | DV154: 0.4014916305 | DW154: 0.3981743716 | DX154: 0.3948387584 | DY154: 0.3914845379 | DZ154: 0.3881114488 | EA154: 0.384719221 | EB154: =(C_1*EB151/c_g)+(C_2*(4/PI())*SQRT(1-POWER(EB150,2)))+(C_3*EB147) -> 0.3813075756 | EC154: 0.3778762239 | ED154: 0.3744248673 | EE154: 0.3709531964 | EF154: 0.3674608903 | EG154: 0.3639476164 | EH154: 0.3604130291 | EI154: 0.3568567695 | EJ154: 0.3532784642 | EK154: 0.3496777246 | EL154: 0.3460541457 | EM154: 0.3424073052 | EN154: 0.3387367622 | EO154: 0.3350420561 | EP154: 0.3313227049 | EQ154: 0.3275782037 | ER154: 0.3238080233 | ES154: 0.3200116081 | ET154: 0.3161883742 | EU154: 0.3123377068 | EV154: 0.3084589582 | EW154: 0.3045514448 | EX154: 0.3006144439 | EY154: 0.2966471907 | EZ154: 0.2926488739 | FA154: 0.2886186321 | FB154: 0.2845555485 | FC154: 0.2804586458 | FD154: 0.2763268801 | FE154: 0.272159134 | FF154: 0.2679542085 | FG154: 0.2637108145 | FH154: =(C_1*FH151/c_g)+(C_2*(4/PI())*SQRT(1-POWER(FH150,2)))+(C_3*FH147) -> 0.2594275625 | FI154: 0.2551029503 | FJ154: 0.2507353499 | FK154: 0.2463229915 | FL154: 0.2418639449 | FM154: 0.2373560976 | FN154: 0.2327971296 | FO154: 0.2281844822 | FP154: 0.2235153217 | FQ154: 0.2187864949 | FR154: 0.2139944756 | FS154: 0.2091352984 | FT154: 0.2042044764 | FU154: 0.1991968987 | FV154: 0.1941066997 | FW154: 0.1889270913 | FX154: 0.1836501439 | FY154: 0.178266495 | FZ154: 0.1727649551 | GA154: 0.1671319619 | GB154: 0.1613508054 | GC154: 0.1554004924 | GD154: 0.1492540234 | GE154: 0.1428756609 | GF154: 0.136216354 | GG154: 0.129205528 | GH154: 0.1217349227 | GI154: 0.1136223813 | GJ154: 0.1045128717 | GK154: 0.09349014761 | GL154: 0.07091279159
B156: Anderson's lift function | C156: Lb | D156: =(bet*JF*(D154*C_4*COS(phi_bet*PI()/180)*(D150+Alp_o.1))) -> -0.1316872713 | E156: -0.1281580306 | F156: -0.1246738112 | G156: -0.1212288803 | H156: -0.1178180289 | I156: -0.1144365461 | J156: -0.1110801944 | K156: -0.1077451856 | L156: -0.1044281571 | M156: -0.1011261493 | N156: -0.09783658344 | O156: -0.09455723974 | P156: -0.09128623686 | Q156: -0.08802201146 | R156: -0.08476329865 | S156: -0.08150911299 | T156: -0.07825873018 | U156: -0.07501166938 | V156: -0.07176767613 | W156: -0.06852670596 | X156: -0.06528890861 | Y156: -0.06205461285 | Z156: -0.05882431201 | AA156: -0.05559865004 | AB156: -0.05237840832 | AC156: -0.04916449298 | AD156: -0.04595792295 | AE156: -0.04275981853 | AF156: -0.0395713907 | AG156: -0.03639393098 | AH156: -0.03322880191 | AI156: -0.03007742822 | AJ156: =(bet*JF*(AJ154*C_4*COS(phi_bet*PI()/180)*(AJ150+Alp_o.1))) -> -0.02694128855 | AK156: -0.02382190783 | AL156: -0.02072085025 | AM156: -0.01763971293 | AN156: -0.01458012008 | AO156: -0.0115437179 | AP156: -0.008532170053 | AQ156: -0.005547153732 | AR156: -0.002590356396 | AS156: 0.000336526905 | AT156: 0.003231795571 | AU156: 0.006093744874 | AV156: 0.008920666758 | AW156: 0.01171085001 | AX156: 0.0144625798 | AY156: 0.01717413661 | AZ156: 0.01984379451 | BA156: 0.02246981881 | BB156: 0.02505046307 | BC156: 0.02758396545 | BD156: 0.03006854446 | BE156: 0.03250239398 | BF156: 0.03488367771 | BG156: 0.03721052282 | BH156: 0.03948101308 | BI156: 0.04169318114 | BJ156: 0.04384500022 | BK156: 0.045934375 | BL156: 0.0479591318 | BM156: 0.04991700802 | BN156: 0.05180564071 | BO156: 0.05362255442 | BP156: =(bet*JF*(BP154*C_4*COS(phi_bet*PI()/180)*(BP150+Alp_o.1))) -> 0.05536514811 | BQ156: 0.05703068122 | BR156: 0.05861625873 | BS156: 0.06011881526 | BT156: 0.06153509807 | BU156: 0.06286164885 | BV156: 0.06409478432 | BW156: 0.06523057531 | BX156: 0.06626482438 | BY156: 0.06719304161 | BZ156: 0.06801041842 | CA156: 0.06871179909 | CB156: 0.06929164961 | CC156: 0.06974402334 | CD156: 0.07006252295 | CE156: 0.07024025776 | CF156: 0.07026979547 | CG156: 0.07014310695 | CH156: 0.06985150217 | CI156: 0.06938555484 | CJ156: 0.06873501216 | CK156: 0.067888685 | CL156: 0.0668343113 | CM156: 0.06555838258 | CN156: 0.06404591791 | CO156: 0.06228016159 | CP156: 0.06024216611 | CQ156: 0.06002258487 | CR156: 0.05980004338 | CS156: 0.05957451778 | CT156: 0.05934598385 | CU156: 0.05911441694 | CV156: =(bet*JF*(CV154*C_4*COS(phi_bet*PI()/180)*(CV150+Alp_o.1))) -> 0.05887979202 | CW156: 0.05864208364 | CX156: 0.05840126592 | CY156: 0.05815731251 | CZ156: 0.05791019664 | DA156: 0.05765989104 | DB156: 0.05740636794 | DC156: 0.05714959908 | DD156: 0.05688955568 | DE156: 0.05662620839 | DF156: 0.05635952732 | DG156: 0.05608948198 | DH156: 0.05581604127 | DI156: 0.05553917348 | DJ156: 0.05525884623 | DK156: 0.05497502646 | DL156: 0.05468768041 | DM156: 0.0543967736 | DN156: 0.05410227075 | DO156: 0.05380413581 | DP156: 0.05350233189 | DQ156: 0.05319682124 | DR156: 0.05288756521 | DS156: 0.0525745242 | DT156: 0.05225765761 | DU156: 0.05193692384 | DV156: 0.05161228018 | DW156: 0.0512836828 | DX156: 0.0509510867 | DY156: 0.0506144456 | DZ156: 0.05027371194 | EA156: 0.04992883678 | EB156: =(bet*JF*(EB154*C_4*COS(phi_bet*PI()/180)*(EB150+Alp_o.1))) -> 0.04957976973 | EC156: 0.04922645889 | ED156: 0.04886885073 | EE156: 0.04850689005 | EF156: 0.04814051986 | EG156: 0.04776968127 | EH156: 0.04739431338 | EI156: 0.0470143532 | EJ156: 0.04662973547 | EK156: 0.04624039254 | EL156: 0.04584625422 | EM156: 0.04544724764 | EN156: 0.04504329701 | EO156: 0.04463432348 | EP156: 0.04422024492 | EQ156: 0.04380097567 | ER156: 0.04337642628 | ES156: 0.04294650327 | ET156: 0.04251110877 | EU156: 0.04207014022 | EV156: 0.04162349 | EW156: 0.04117104499 | EX156: 0.04071268611 | EY156: 0.04024828785 | EZ156: 0.03977771764 | FA156: 0.03930083529 | FB156: 0.03881749219 | FC156: 0.03832753059 | FD156: 0.03783078263 | FE156: 0.03732706934 | FF156: 0.03681619949 | FG156: 0.03629796823 | FH156: =(bet*JF*(FH154*C_4*COS(phi_bet*PI()/180)*(FH150+Alp_o.1))) -> 0.03577215558 | FI156: 0.03523852468 | FJ156: 0.03469681975 | FK156: 0.03414676376 | FL156: 0.03358805566 | FM156: 0.03302036716 | FN156: 0.03244333894 | FO156: 0.03185657612 | FP156: 0.0312596428 | FQ156: 0.03065205559 | FR156: 0.0300332756 | FS156: 0.02940269873 | FT156: 0.02875964358 | FU156: 0.02810333624 | FV156: 0.02743289117 | FW156: 0.02674728644 | FX156: 0.02604533156 | FY156: 0.02532562466 | FZ156: 0.02458649472 | GA156: 0.02382592141 | GB156: 0.02304142159 | GC156: 0.02222988295 | GD156: 0.02138731196 | GE156: 0.02050843421 | GF156: 0.01958602593 | GG156: 0.01860971499 | GH156: 0.01756362276 | GI156: 0.01642108437 | GJ156: 0.01513022899 | GK156: 0.0135574524 | GL156: 0.01030082719
B158: Additional lift coefficient | C158: cL,a | D158: =D154*C_L*c_g/D151 -> 1.039287729 | E158: =E154*C_L*c_g/E151 -> 1.045576592 | F158: 1.052222415 | G158: 1.059204266 | H158: 1.066501927 | I158: 1.074095885 | J158: 1.081967333 | K158: 1.09009816 | L158: 1.098470944 | M158: 1.107068951 | N158: 1.115876126 | O158: 1.124877085 | P158: 1.134057111 | Q158: 1.143402147 | R158: 1.152898785 | S158: 1.162534261 | T158: 1.172296449 | U158: 1.182173847 | V158: 1.192155572 | W158: 1.202231348 | X158: 1.212391498 | Y158: 1.222626934 | Z158: 1.232929142 | AA158: 1.243290174 | AB158: 1.253702633 | AC158: 1.264159663 | AD158: 1.27465493 | AE158: 1.285182611 | AF158: 1.295737379 | AG158: 1.30631438 | AH158: 1.316909224 | AI158: 1.327517958 | AJ158: =AJ154*C_L*c_g/AJ151 -> 1.338137049 | AK158: 1.348763363 | AL158: 1.359394139 | AM158: 1.370026969 | AN158: 1.380659763 | AO158: 1.391290729 | AP158: 1.401918338 | AQ158: 1.412541288 | AR158: 1.423158476 | AS158: 1.433768951 | AT158: 1.444371879 | AU158: 1.454966494 | AV158: 1.465552051 | AW158: 1.476127774 | AX158: 1.486692797 | AY158: 1.497246103 | AZ158: 1.507786457 | BA158: 1.518312331 | BB158: 1.528821824 | BC158: 1.539312577 | BD158: 1.549781673 | BE158: 1.560225532 | BF158: 1.570639801 | BG158: 1.581019219 | BH158: 1.591357486 | BI158: 1.6016471 | BJ158: 1.611879193 | BK158: 1.622043341 | BL158: 1.632127354 | BM158: 1.642117041 | BN158: 1.651995956 | BO158: 1.661745108 | BP158: =BP154*C_L*c_g/BP151 -> 1.671342634 | BQ158: 1.680763441 | BR158: 1.689978796 | BS158: 1.69895587 | BT158: 1.707657217 | BU158: 1.71604019 | BV158: 1.724056273 | BW158: 1.731650321 | BX158: 1.738759694 | BY158: 1.745313261 | BZ158: 1.751230253 | CA158: 1.756418938 | CB158: 1.760775088 | CC158: 1.764180184 | CD158: 1.766499321 | CE158: 1.76757874 | CF158: 1.767242902 | CG158: 1.765291013 | CH158: 1.76149284 | CI158: 1.755583679 | CJ158: 1.747258198 | CK158: 1.736162883 | CL158: 1.721886633 | CM158: 1.703948917 | CN158: 1.681784651 | CO158: 1.654724519 | CP158: 1.62196886 | CQ158: 1.61834454 | CR158: 1.614652715 | CS158: 1.610892294 | CT158: 1.607062164 | CU158: 1.603161186 | CV158: =CV154*C_L*c_g/CV151 -> 1.599188201 | CW158: 1.595142023 | CX158: 1.591021443 | CY158: 1.586825224 | CZ158: 1.582552105 | DA158: 1.578200793 | DB158: 1.573769973 | DC158: 1.569258295 | DD158: 1.564664382 | DE158: 1.559986825 | DF158: 1.555224184 | DG158: 1.550374985 | DH158: 1.545437719 | DI158: 1.540410844 | DJ158: 1.53529278 | DK158: 1.530081909 | DL158: 1.524776574 | DM158: 1.519375079 | DN158: 1.513875684 | DO158: 1.508276606 | DP158: 1.502576019 | DQ158: 1.496772049 | DR158: 1.490862772 | DS158: 1.484846215 | DT158: 1.478720354 | DU158: 1.472483108 | DV158: 1.466132342 | DW158: 1.45966586 | DX158: 1.453081406 | DY158: 1.446376658 | DZ158: 1.439549229 | EA158: 1.432596663 | EB158: =EB154*C_L*c_g/EB151 -> 1.425516429 | EC158: 1.418305922 | ED158: 1.410962454 | EE158: 1.403483257 | EF158: 1.395865473 | EG158: 1.388106153 | EH158: 1.380202252 | EI158: 1.372150622 | EJ158: 1.363948009 | EK158: 1.355591046 | EL158: 1.347076247 | EM158: 1.3384 | EN158: 1.329558561 | EO158: 1.320548044 | EP158: 1.311364416 | EQ158: 1.302003482 | ER158: 1.292460881 | ES158: 1.282732071 | ET158: 1.272812319 | EU158: 1.262696687 | EV158: 1.252380016 | EW158: 1.241856915 | EX158: 1.231121736 | EY158: 1.22016856 | EZ158: 1.208991174 | FA158: 1.197583047 | FB158: 1.185937301 | FC158: 1.174046684 | FD158: 1.161903533 | FE158: 1.149499739 | FF158: 1.1368267 | FG158: 1.123875276 | FH158: =FH154*C_L*c_g/FH151 -> 1.11063573 | FI158: 1.097097663 | FJ158: 1.083249943 | FK158: 1.069080617 | FL158: 1.054576811 | FM158: 1.039724616 | FN158: 1.024508949 | FO158: 1.008913387 | FP158: 0.9929199794 | FQ158: 0.9765090088 | FR158: 0.9596587101 | FS158: 0.9423449233 | FT158: 0.9245406646 | FU158: 0.9062155905 | FV158: 0.8873353201 | FW158: 0.8678605657 | FX158: 0.847746001 | FY158: 0.8269387622 | FZ158: 0.8053764244 | GA158: 0.7829842079 | GB158: 0.7596710191 | GC158: 0.7353236714 | GD158: 0.7097981345 | GE158: 0.6829056938 | GF158: 0.6543898355 | GG158: 0.6238848656 | GH158: 0.5908346648 | GI158: 0.5543111076 | GJ158: 0.5125190221 | GK158: 0.4608592293 | GL158: 0.3513994746
B160: Basic lift coefficient | C160: cL,b | D160: =(D156*c_g*eps_t.rad*D152)/(D151*JF) -> 0.1171887542 | E160: =(E156*c_g*eps_t.rad*E152)/(E151*JF) -> 0.1151674665 | F160: 0.1131439847 | G160: 0.1111131624 | H160: 0.1090701303 | I160: 0.1070102886 | J160: 0.1049292986 | K160: 0.1028230737 | L160: 0.1006877715 | M160: 0.09851978519 | N160: 0.09631573524 | O160: 0.09407246077 | P160: 0.09178701126 | Q160: 0.0894566381 | R160: 0.08707878623 | S160: 0.08465108571 | T160: 0.08217134339 | U160: 0.07963753465 | V160: 0.07704779506 | W160: 0.07440041219 | X160: 0.07169381746 | Y160: 0.06892657804 | Z160: 0.06609738884 | AA160: 0.06320506456 | AB160: 0.06024853192 | AC160: 0.05722682189 | AD160: 0.05413906213 | AE160: 0.05098446958 | AF160: 0.04776234312 | AG160: 0.04447205651 | AH160: 0.04111305146 | AI160: 0.03768483094 | AJ160: =(AJ156*c_g*eps_t.rad*AJ152)/(AJ151*JF) -> 0.03418695277 | AK160: 0.03061902339 | AL160: 0.026980692 | AM160: 0.02327164502 | AN160: 0.01949160088 | AO160: 0.01564030525 | AP160: 0.01171752667 | AQ160: 0.007723052738 | AR160: 0.003656686732 | AS160: -0.0004817550513 | AT160: -0.004692445377 | AU160: -0.008975547389 | AV160: -0.01333121512 | AW160: -0.01775959312 | AX160: -0.02226081505 | AY160: -0.02683500123 | AZ160: -0.0314822549 | BA160: -0.0362026572 | BB160: -0.0409962605 | BC160: -0.04586308021 | BD160: -0.05080308457 | BE160: -0.05581618243 | BF160: -0.06090220856 | BG160: -0.0660609065 | BH160: -0.07129190826 | BI160: -0.07659471084 | BJ160: -0.08196864895 | BK160: -0.08741286351 | BL160: -0.09292626536 | BM160: -0.09850749364 | BN160: -0.104154868 | BO160: -0.1098663338 | BP160: =(BP156*c_g*eps_t.rad*BP152)/(BP151*JF) -> -0.1156393993 | BQ160: -0.1214710642 | BR160: -0.1273577371 | BS160: -0.1332951414 | BT160: -0.1392782074 | BU160: -0.1453009486 | BV160: -0.1513563189 | BW160: -0.1574360489 | BX160: -0.1635304571 | BY160: -0.169628231 | BZ160: -0.1757161741 | CA160: -0.1817789115 | CB160: -0.1877985467 | CC160: -0.19375426 | CD160: -0.1996218371 | CE160: -0.2053731124 | CF160: -0.2109753092 | CG160: -0.2163902534 | CH160: -0.2215734307 | CI160: -0.2264728477 | CJ160: -0.2310276472 | CK160: -0.235166409 | CL160: -0.2388050432 | CM160: -0.2418441505 | CN160: -0.2441656661 | CO160: -0.2456285271 | CP160: -0.2460629675 | CQ160: -0.2460422773 | CR160: -0.2460090507 | CS160: -0.245963054 | CT160: -0.2459040487 | CU160: -0.2458317911 | CV160: =(CV156*c_g*eps_t.rad*CV152)/(CV151*JF) -> -0.2457460324 | CW160: -0.2456465187 | CX160: -0.2455329903 | CY160: -0.2454051822 | CZ160: -0.2452628233 | DA160: -0.2451056367 | DB160: -0.2449333396 | DC160: -0.2447456425 | DD160: -0.2445422496 | DE160: -0.2443228583 | DF160: -0.2440871592 | DG160: -0.2438348358 | DH160: -0.243565564 | DI160: -0.2432790124 | DJ160: -0.2429748415 | DK160: -0.2426527038 | DL160: -0.2423122436 | DM160: -0.2419530962 | DN160: -0.2415748882 | DO160: -0.2411772368 | DP160: -0.2407597498 | DQ160: -0.2403220247 | DR160: -0.2398636489 | DS160: -0.2393841992 | DT160: -0.2388832412 | DU160: -0.2383603289 | DV160: -0.2378150045 | DW160: -0.2372467976 | DX160: -0.2366552249 | DY160: -0.2360397897 | DZ160: -0.2353999813 | EA160: -0.2347352742 | EB160: =(EB156*c_g*eps_t.rad*EB152)/(EB151*JF) -> -0.2340451277 | EC160: -0.2333289854 | ED160: -0.2325862739 | EE160: -0.2318164026 | EF160: -0.2310187627 | EG160: -0.2301927262 | EH160: -0.2293376452 | EI160: -0.2284528508 | EJ160: -0.227537652 | EK160: -0.2265913345 | EL160: -0.2256131597 | EM160: -0.2246023632 | EN160: -0.2235581534 | EO160: -0.2224797099 | EP160: -0.2213661819 | EQ160: -0.2202166865 | ER160: -0.2190303065 | ES160: -0.2178060882 | ET160: -0.2165430395 | EU160: -0.2152401266 | EV160: -0.2138962719 | EW160: -0.2125103506 | EX160: -0.211081187 | EY160: -0.2096075513 | EZ160: -0.2080881549 | FA160: -0.2065216459 | FB160: -0.2049066043 | FC160: -0.2032415354 | FD160: -0.201524864 | FE160: -0.1997549269 | FF160: -0.1979299644 | FG160: -0.1960481111 | FH160: =(FH156*c_g*eps_t.rad*FH152)/(FH151*JF) -> -0.194107385 | FI160: -0.1921056756 | FJ160: -0.1900407293 | FK160: -0.1879101336 | FL160: -0.1857112978 | FM160: -0.183441431 | FN160: -0.1810975164 | FO160: -0.1786762798 | FP160: -0.1761741536 | FQ160: -0.1735872324 | FR160: -0.1709112194 | FS160: -0.1681413615 | FT160: -0.1652723684 | FU160: -0.162298312 | FV160: -0.1592124991 | FW160: -0.1560073083 | FX160: -0.1526739782 | FY160: -0.1492023268 | FZ160: -0.1455803729 | GA160: -0.1417938145 | GB160: -0.1378252895 | GC160: -0.1336532984 | GD160: -0.1292505739 | GE160: -0.1245815039 | GF160: -0.1195978331 | GG160: -0.1142309721 | GH160: -0.1083769128 | GI160: -0.1018625419 | GJ160: -0.09435388259 | GK160: -0.08499740715 | GL160: -0.06492692652
B162: Spanwise lift coefficient | C162: cL | D162: =D158+D160 -> 1.156476484 | E162: =E158+E160 -> 1.160744059 | F162: =F158+F160 -> 1.1653664 | G162: =G158+G160 -> 1.170317429 | H162: =H158+H160 -> 1.175572057 | I162: 1.181106174 | J162: 1.186896632 | K162: 1.192921234 | L162: 1.199158716 | M162: 1.205588737 | N162: 1.212191861 | O162: 1.218949546 | P162: 1.225844123 | Q162: 1.232858785 | R162: 1.239977571 | S162: 1.247185347 | T162: 1.254467793 | U162: 1.261811382 | V162: 1.269203367 | W162: 1.27663176 | X162: 1.284085316 | Y162: 1.291553512 | Z162: 1.299026531 | AA162: 1.306495238 | AB162: 1.313951165 | AC162: 1.321386485 | AD162: 1.328793992 | AE162: 1.336167081 | AF162: 1.343499722 | AG162: 1.350786437 | AH162: 1.358022276 | AI162: 1.365202789 | AJ162: 1.372324002 | AK162: 1.379382386 | AL162: 1.386374831 | AM162: 1.393298614 | AN162: 1.400151364 | AO162: 1.406931035 | AP162: 1.413635864 | AQ162: 1.420264341 | AR162: 1.426815163 | AS162: 1.433287196 | AT162: 1.439679434 | AU162: 1.445990946 | AV162: 1.452220836 | AW162: 1.458368181 | AX162: 1.464431982 | AY162: 1.470411102 | AZ162: 1.476304202 | BA162: 1.482109674 | BB162: 1.487825564 | BC162: 1.493449497 | BD162: 1.498978588 | BE162: 1.50440935 | BF162: 1.509737592 | BG162: 1.514958313 | BH162: 1.520065577 | BI162: 1.525052389 | BJ162: 1.529910544 | BK162: 1.534630478 | BL162: 1.539201088 | BM162: 1.543609547 | BN162: 1.547841088 | BO162: 1.551878774 | BP162: 1.555703235 | BQ162: 1.559292377 | BR162: 1.562621059 | BS162: 1.565660729 | BT162: =BT158+BT160 -> 1.56837901 | BU162: 1.570739242 | BV162: 1.572699954 | BW162: 1.574214272 | BX162: 1.575229237 | BY162: 1.57568503 | BZ162: 1.575514079 | CA162: 1.574640027 | CB162: 1.572976541 | CC162: 1.570425924 | CD162: 1.566877484 | CE162: 1.562205627 | CF162: 1.556267593 | CG162: 1.548900759 | CH162: 1.53991941 | CI162: 1.529110832 | CJ162: 1.516230551 | CK162: 1.500996475 | CL162: 1.48308159 | CM162: 1.462104767 | CN162: 1.437618985 | CO162: 1.409095992 | CP162: 1.375905893 | CQ162: 1.372302263 | CR162: 1.368643665 | CS162: =CS158+CS160 -> 1.36492924 | CT162: 1.361158115 | CU162: 1.357329395 | CV162: 1.353442168 | CW162: 1.349495504 | CX162: 1.345488453 | CY162: 1.341420042 | CZ162: 1.337289281 | DA162: 1.333095157 | DB162: 1.328836633 | DC162: 1.324512652 | DD162: 1.320122132 | DE162: 1.315663967 | DF162: 1.311137025 | DG162: 1.306540149 | DH162: 1.301872155 | DI162: 1.297131832 | DJ162: 1.292317939 | DK162: 1.287429205 | DL162: 1.282464331 | DM162: 1.277421982 | DN162: 1.272300795 | DO162: 1.267099369 | DP162: 1.26181627 | DQ162: 1.256450024 | DR162: 1.250999123 | DS162: 1.245462016 | DT162: 1.239837113 | DU162: 1.23412278 | DV162: 1.228317338 | DW162: 1.222419063 | DX162: 1.216426181 | DY162: 1.210336868 | DZ162: 1.204149248 | EA162: 1.197861389 | EB162: 1.191471302 | EC162: 1.184976936 | ED162: 1.17837618 | EE162: 1.171666854 | EF162: 1.16484671 | EG162: 1.157913427 | EH162: 1.150864607 | EI162: 1.143697771 | EJ162: 1.136410357 | EK162: 1.128999711 | EL162: 1.121463087 | EM162: 1.113797637 | EN162: 1.106000408 | EO162: 1.098068335 | EP162: 1.089998234 | EQ162: 1.081786795 | ER162: 1.073430574 | ES162: 1.064925983 | ET162: 1.056269279 | EU162: 1.04745656 | EV162: 1.038483744 | EW162: 1.029346564 | EX162: 1.020040549 | EY162: 1.010561009 | EZ162: 1.000903019 | FA162: 0.991061401 | FB162: 0.9810306968 | FC162: 0.9708051484 | FD162: 0.9603786689 | FE162: =FE158+FE160 -> 0.9497448118 | FF162: 0.9388967357 | FG162: 0.9278271653 | FH162: 0.9165283449 | FI162: 0.9049919874 | FJ162: 0.8932092136 | FK162: 0.881170483 | FL162: 0.8688655133 | FM162: 0.8562831854 | FN162: 0.8434114324 | FO162: 0.8302371073 | FP162: 0.8167458258 | FQ162: 0.8029217764 | FR162: 0.7887474907 | FS162: 0.7742035619 | FT162: 0.7592682962 | FU162: 0.7439172785 | FV162: 0.728122821 | FW162: 0.7118532574 | FX162: 0.6950720227 | FY162: 0.6777364353 | FZ162: 0.6597960515 | GA162: 0.6411903934 | GB162: 0.6218457296 | GC162: 0.6016703729 | GD162: 0.5805475606 | GE162: 0.5583241898 | GF162: 0.5347920024 | GG162: 0.5096538936 | GH162: 0.4824577519 | GI162: 0.4524485657 | GJ162: 0.4181651395 | GK162: 0.3758618221 | GL162: 0.2864725481 | GM162: =MAX(D162:GL162) -> 1.57568503
B164: Gamma_b | C164: Gb | D164: =D160*D151/c_g -> 0.2020495762 | E164: =E160*E151/c_g -> 0.1968966547 | F164: 0.1917985617 | G164: 0.1867467426 | H164: 0.1817334033 | I164: 0.1767514768 | J164: 0.1717945896 | K164: 0.1668570292 | L164: 0.1619337125 | M164: 0.1570201542 | N164: 0.152112437 | O164: 0.1472071817 | P164: 0.1423015181 | Q164: 0.1373930573 | R164: 0.1324798637 | S164: 0.1275604291 | T164: 0.1226336463 | U164: 0.117698784 | V164: 0.1127554628 | W164: 0.1078036317 | X164: 0.102843545 | Y164: 0.09787574082 | Z164: 0.09290101962 | AA164: 0.08792042429 | AB164: 0.08293522049 | AC164: 0.07794687809 | AD164: 0.07295705339 | AE164: 0.06796757221 | AF164: 0.06298041383 | AG164: 0.05799769576 | AH164: 0.05302165946 | AI164: 0.04805465684 | AJ164: =AJ160*AJ151/c_g -> 0.0430991377 | AK164: 0.03815763811 | AL164: 0.03323276959 | AM164: 0.02832720928 | AN164: 0.02344369099 | AO164: 0.0185849972 | AP164: 0.013753952 | AQ164: 0.008953414933 | AR164: 0.004186275845 | AS164: -0.0005445493304 | AT164: -0.005236121807 | AU164: -0.009885482194 | AV164: -0.01448965175 | AW164: -0.01904563262 | AX164: -0.02355040709 | AY164: -0.02800093576 | AZ164: -0.0323941547 | BA164: -0.03672697154 | BB164: -0.0409962605 | BC164: -0.04519885629 | BD164: -0.04933154695 | BE164: -0.05339106553 | BF164: -0.05737408062 | BG164: -0.06127718568 | BH164: -0.06509688726 | BI164: -0.06882959188 | BJ164: -0.0724715917 | BK164: -0.07601904888 | BL164: -0.07946797865 | BM164: -0.08281423086 | BN164: -0.08605347024 | BO164: -0.08918115505 | BP164: =BP160*BP151/c_g -> -0.0921925142 | BQ164: -0.09508252267 | BR164: -0.09784587525 | BS164: -0.1004769583 | BT164: -0.1029698196 | BU164: -0.1053181359 | BV164: -0.1075151782 | BW164: -0.1095537747 | BX164: -0.1114262701 | BY164: -0.1131244823 | BZ164: -0.1146396557 | CA164: -0.1159624091 | CB164: -0.1170826801 | CC164: -0.1179896631 | CD164: -0.1186717404 | CE164: -0.1191164052 | CF164: -0.1193101748 | CG164: -0.1192384914 | CH164: -0.1188856063 | CI164: -0.1182344453 | CJ164: -0.1172664471 | CK164: -0.1159613672 | CL164: -0.1142970345 | CM164: -0.1122490436 | CN164: -0.1097903547 | CO164: -0.1068907591 | CP164: -0.1035161449 | CQ164: -0.1031511037 | CR164: -0.1027808848 | CS164: -0.1024054453 | CT164: -0.1020247419 | CU164: -0.1016387302 | CV164: =CV160*CV151/c_g -> -0.1012473654 | CW164: -0.1008506018 | CX164: -0.100448393 | CY164: -0.1000406918 | CZ164: -0.09962745028 | DA164: -0.09920861945 | DB164: -0.09878414965 | DC164: -0.09835399026 | DD164: -0.09791808972 | DE164: -0.09747639554 | DF164: -0.0970288542 | DG164: -0.09657541117 | DH164: -0.09611601085 | DI164: -0.09565059652 | DJ164: -0.09517911031 | DK164: -0.09470149316 | DL164: -0.09421768477 | DM164: -0.09372762354 | DN164: -0.09323124651 | DO164: -0.09272848934 | DP164: -0.09221928622 | DQ164: -0.09170356982 | DR164: -0.09118127123 | DS164: -0.09065231986 | DT164: -0.09011664341 | DU164: -0.08957416775 | DV164: -0.08902481685 | DW164: -0.08846851272 | DX164: -0.08790517526 | DY164: -0.08733472219 | DZ164: -0.08675706896 | EA164: -0.08617212858 | EB164: =EB160*EB151/c_g -> -0.08557981153 | EC164: -0.08498002564 | ED164: -0.0843726759 | EE164: -0.08375766435 | EF164: -0.08313488991 | EG164: -0.08250424814 | EH164: -0.08186563115 | EI164: -0.08121892731 | EJ164: -0.08056402106 | EK164: -0.07990079264 | EL164: -0.07922911788 | EM164: -0.07854886785 | EN164: -0.07785990859 | EO164: -0.07716210075 | EP164: -0.07645529924 | EQ164: -0.07573935281 | ER164: -0.07501410359 | ES164: -0.07427938665 | ET164: -0.0735350294 | EU164: -0.07278085108 | EV164: -0.07201666204 | EW164: -0.07124226306 | EX164: -0.0704574445 | EY164: -0.0696619855 | EZ164: -0.0688556529 | FA164: -0.06803820018 | FB164: -0.06720936619 | FC164: -0.06636887379 | FD164: -0.0655164282 | FE164: -0.06465171532 | FF164: -0.06377439958 | FG164: -0.06288412171 | FH164: =FH160*FH151/c_g -> -0.06198049605 | FI164: -0.06106310751 | FJ164: -0.060131508 | FK164: -0.05918521242 | FL164: -0.05822369377 | FM164: -0.05724637762 | FN164: -0.05625263544 | FO164: -0.05524177672 | FP164: -0.05421303955 | FQ164: -0.05316557924 | FR164: -0.05209845445 | FS164: -0.05101061028 | FT164: -0.04990085716 | FU164: -0.04876784451 | FV164: -0.0476100273 | FW164: -0.04642562312 | FX164: -0.04521255603 | FY164: -0.04396838224 | FZ164: -0.04269018936 | GA164: -0.04137445717 | GB164: -0.04001685991 | GC164: -0.03861197705 | GD164: -0.03715285462 | GE164: -0.03563031012 | GF164: -0.0340317696 | GG164: -0.0323391821 | GH164: -0.03052491807 | GI164: -0.02854258675 | GJ164: -0.02630195817 | GK164: -0.02357066029 | GL164: -0.01791087628
B165: Gamma_a | C165: Ga | D165: =D158*D151/c_g -> 1.791875396 | E165: =E158*E151/c_g -> 1.787575429 | F165: 1.783698411 | G165: 1.780193653 | H165: 1.777012865 | I165: 1.7741101 | J165: 1.771441689 | K165: 1.768966186 | L165: 1.766644305 | M165: 1.76443886 | N165: 1.762314709 | O165: 1.760238694 | P165: 1.758179577 | Q165: 1.756107987 | R165: 1.753996358 | S165: 1.75181887 | T165: 1.74955139 | U165: 1.747171417 | V165: 1.744658016 | W165: 1.741991766 | X165: 1.739154701 | Y165: 1.736130246 | Z165: 1.732903166 | AA165: 1.729459504 | AB165: 1.725786521 | AC165: 1.721872644 | AD165: 1.717707402 | AE165: 1.713281371 | AF165: 1.708586116 | AG165: 1.703614133 | AH165: 1.698358793 | AI165: 1.692814279 | AJ165: =AJ158*AJ151/c_g -> 1.686975535 | AK165: 1.680838204 | AL165: 1.674398574 | AM165: 1.667653517 | AN165: 1.660600432 | AO165: 1.653237191 | AP165: 1.645562076 | AQ165: 1.637573728 | AR165: 1.629271083 | AS165: 1.620653318 | AT165: 1.611719793 | AU165: 1.602469993 | AV165: 1.592903471 | AW165: 1.583019785 | AX165: 1.572818448 | AY165: 1.562298865 | AZ165: 1.551460271 | BA165: 1.540301682 | BB165: 1.528821824 | BC165: 1.517019085 | BD165: 1.504891445 | BE165: 1.492436423 | BF165: 1.479651012 | BG165: 1.466531621 | BH165: 1.453074008 | BI165: 1.439273221 | BJ165: 1.425123535 | BK165: 1.410618382 | BL165: 1.395750289 | BM165: 1.380510809 | BN165: 1.364890452 | BO165: 1.348878615 | BP165: =BP158*BP151/c_g -> 1.332463507 | BQ165: 1.315632073 | BR165: 1.298369917 | BS165: 1.280661218 | BT165: 1.262488646 | BU165: 1.243833269 | BV165: 1.224674456 | BW165: 1.204989775 | BX165: 1.184754881 | BY165: 1.163943396 | BZ165: 1.142526772 | CA165: 1.12047415 | CB165: 1.097752193 | CC165: 1.074324898 | CD165: 1.050153389 | CE165: 1.025195669 | CF165: 0.999406331 | CG165: 0.97273622 | CH165: 0.9451320206 | CI165: 0.9165357553 | CJ165: 0.8868841614 | CK165: 0.8561079046 | CL165: 0.8241305677 | CM165: 0.7908673251 | CN165: 0.7562231674 | CO165: 0.7200904631 | CP165: 0.6823455205 | CQ165: 0.6784769972 | CR165: 0.674590769 | CS165: 0.6706866746 | CT165: 0.6667645501 | CU165: 0.6628242282 | CV165: =CV158*CV151/c_g -> 0.6588655387 | CW165: 0.6548883078 | CX165: 0.6508923586 | CY165: 0.6468775104 | CZ165: 0.642843579 | DA165: 0.6387903763 | DB165: 0.6347177103 | DC165: 0.630625385 | DD165: 0.6265131999 | DE165: 0.6223809505 | DF165: 0.6182284273 | DG165: 0.6140554163 | DH165: 0.6098616986 | DI165: 0.6056470499 | DJ165: 0.6014112407 | DK165: 0.597154036 | DL165: 0.5928751948 | DM165: 0.5885744701 | DN165: 0.5842516086 | DO165: 0.5799063503 | DP165: 0.5755384284 | DQ165: 0.5711475686 | DR165: 0.5667334894 | DS165: 0.5622959012 | DT165: 0.557834506 | DU165: 0.5533489971 | DV165: 0.5488390589 | DW165: 0.5443043659 | DX165: 0.5397445828 | DY165: 0.5351593634 | DZ165: 0.5305483505 | EA165: 0.5259111751 | EB165: =EB158*EB151/c_g -> 0.5212474558 | EC165: 0.5165567981 | ED165: 0.5118387936 | EE165: 0.5070930194 | EF165: 0.502319037 | EG165: 0.4975163916 | EH165: 0.4926846108 | EI165: 0.4878232039 | EJ165: 0.4829316606 | EK165: 0.4780094495 | EL165: 0.4730560171 | EM165: 0.4680707862 | EN165: 0.463053154 | EO165: 0.4580024907 | EP165: 0.4529181375 | EQ165: 0.4477994044 | ER165: 0.4426455678 | ES165: 0.4374558683 | ET165: 0.4322295075 | EU165: 0.4269656452 | EV165: 0.4216633959 | EW165: 0.416321825 | EX165: 0.4109399449 | EY165: 0.4055167096 | EZ165: 0.4000510106 | FA165: 0.39454167 | FB165: 0.3889874347 | FC165: 0.3833869688 | FD165: 0.3777388451 | FE165: 0.3720415361 | FF165: 0.366293403 | FG165: 0.3604926835 | FH165: =FH158*FH151/c_g -> 0.3546374779 | FI165: 0.348725733 | FJ165: 0.3427552233 | FK165: 0.3367235294 | FL165: 0.3306280126 | FM165: 0.3244657855 | FN165: 0.3182336762 | FO165: 0.3119281872 | FP165: 0.3055454447 | FQ165: 0.2990811385 | FR165: 0.2925304482 | FS165: 0.2858879529 | FT165: 0.2791475193 | FU165: 0.2723021605 | FV165: 0.2653438585 | FW165: 0.2582633339 | FX165: 0.2510497468 | FY165: 0.2436902987 | FZ165: 0.2361696936 | GA165: 0.228469392 | GB165: 0.220566551 | GC165: 0.2124324731 | GD165: 0.20403025 | GE165: 0.1953110284 | GF165: 0.186207756 | GG165: 0.1766239568 | GH165: 0.1664116394 | GI165: 0.1553217952 | GJ165: 0.1428690957 | GK165: 0.1278010318 | GL165: 0.0969377861
B166: Gamma | C166: G | D166: =D165+D164 -> 1.993924972 | E166: =E165+E164 -> 1.984472084 | F166: 1.975496973 | G166: 1.966940395 | H166: 1.958746268 | I166: 1.950861577 | J166: 1.943236279 | K166: 1.935823216 | L166: 1.928578017 | M166: 1.921459014 | N166: 1.914427146 | O166: 1.907445875 | P166: 1.900481095 | Q166: 1.893501044 | R166: 1.886476222 | S166: 1.879379299 | T166: 1.872185037 | U166: 1.864870201 | V166: 1.857413479 | W166: 1.849795398 | X166: 1.841998246 | Y166: 1.834005987 | Z166: 1.825804186 | AA166: 1.817379928 | AB166: 1.808721742 | AC166: 1.799819522 | AD166: 1.790664455 | AE166: 1.781248943 | AF166: 1.77156653 | AG166: 1.761611829 | AH166: 1.751380452 | AI166: 1.740868936 | AJ166: 1.730074672 | AK166: 1.718995843 | AL166: 1.707631344 | AM166: 1.695980726 | AN166: 1.684044123 | AO166: 1.671822188 | AP166: 1.659316028 | AQ166: 1.646527143 | AR166: 1.633457359 | AS166: 1.620108768 | AT166: 1.606483671 | AU166: 1.592584511 | AV166: 1.578413819 | AW166: 1.563974152 | AX166: 1.549268041 | AY166: 1.534297929 | AZ166: 1.519066117 | BA166: 1.50357471 | BB166: 1.487825564 | BC166: 1.471820229 | BD166: 1.455559898 | BE166: 1.439045357 | BF166: 1.422276932 | BG166: 1.405254435 | BH166: 1.38797712 | BI166: 1.370443629 | BJ166: 1.352651943 | BK166: 1.334599333 | BL166: 1.31628231 | BM166: 1.297696578 | BN166: 1.278836982 | BO166: 1.25969746 | BP166: 1.240270993 | BQ166: =BQ165+BQ164 -> 1.22054955 | BR166: 1.200524041 | BS166: 1.18018426 | BT166: 1.159518827 | BU166: 1.138515133 | BV166: 1.117159278 | BW166: 1.095436 | BX166: 1.073328611 | BY166: 1.050818913 | BZ166: 1.027887116 | CA166: 1.004511741 | CB166: 0.9806695125 | CC166: 0.9563352349 | CD166: 0.931481649 | CE166: 0.9060792638 | CF166: 0.8800961561 | CG166: 0.8534977286 | CH166: 0.8262464143 | CI166: 0.79830131 | CJ166: 0.7696177143 | CK166: 0.7401465374 | CL166: 0.7098335332 | CM166: 0.6786182815 | CN166: 0.6464328127 | CO166: 0.6131997041 | CP166: 0.5788293755 | CQ166: 0.5753258935 | CR166: 0.5718098842 | CS166: =CS165+CS164 -> 0.5682812293 | CT166: 0.5647398082 | CU166: 0.561185498 | CV166: 0.5576181733 | CW166: 0.5540377061 | CX166: 0.5504439656 | CY166: 0.5468368186 | CZ166: 0.5432161288 | DA166: 0.5395817569 | DB166: 0.5359335607 | DC166: 0.5322713947 | DD166: 0.5285951102 | DE166: 0.5249045549 | DF166: 0.5211995731 | DG166: 0.5174800051 | DH166: 0.5137456877 | DI166: 0.5099964534 | DJ166: 0.5062321304 | DK166: 0.5024525428 | DL166: 0.49865751 | DM166: 0.4948468466 | DN166: 0.4910203621 | DO166: 0.487177861 | DP166: 0.4833191421 | DQ166: 0.4794439988 | DR166: 0.4755522182 | DS166: 0.4716435813 | DT166: 0.4677178625 | DU166: 0.4637748294 | DV166: 0.459814242 | DW166: 0.4558358532 | DX166: 0.4518394075 | DY166: 0.4478246412 | DZ166: 0.4437912815 | EA166: 0.4397390465 | EB166: 0.4356676443 | EC166: 0.4315767724 | ED166: 0.4274661177 | EE166: 0.4233353551 | EF166: 0.4191841471 | EG166: 0.4150121434 | EH166: 0.4108189796 | EI166: 0.4066042766 | EJ166: 0.4023676395 | EK166: 0.3981086569 | EL166: 0.3938268993 | EM166: 0.3895219183 | EN166: 0.3851932454 | EO166: 0.38084039 | EP166: 0.3764628383 | EQ166: 0.3720600516 | ER166: 0.3676314642 | ES166: 0.3631764817 | ET166: 0.3586944781 | EU166: 0.3541847941 | EV166: 0.3496467338 | EW166: 0.345079562 | EX166: 0.3404825003 | EY166: 0.3358547241 | EZ166: 0.3311953577 | FA166: 0.3265034698 | FB166: 0.3217780686 | FC166: 0.317018095 | FD166: 0.3122224169 | FE166: =FE165+FE164 -> 0.3073898208 | FF166: 0.3025190034 | FG166: 0.2976085618 | FH166: 0.2926569819 | FI166: 0.2876626255 | FJ166: 0.2826237153 | FK166: 0.277538317 | FL166: 0.2724043189 | FM166: 0.2672194079 | FN166: 0.2619810408 | FO166: 0.2566864105 | FP166: 0.2513324052 | FQ166: 0.2459155592 | FR166: 0.2404319937 | FS166: 0.2348773427 | FT166: 0.2292466621 | FU166: 0.223534316 | FV166: 0.2177338312 | FW166: 0.2118377107 | FX166: 0.2058371907 | FY166: 0.1997219164 | FZ166: 0.1934795042 | GA166: 0.1870949348 | GB166: 0.1805496911 | GC166: 0.173820496 | GD166: 0.1668773953 | GE166: 0.1596807183 | GF166: 0.1521759864 | GG166: 0.1442847747 | GH166: 0.1358867213 | GI166: 0.1267792084 | GJ166: 0.1165671375 | GK166: 0.1042303715 | GL166: 0.07902690982
B168: Elliptical lift distribution function | D168: =f(0,D150)*C_L -> 1.741812262 | E168: 1.742305446 | F168: 1.74215994 | G168: 1.741474798 | H168: 1.740338238 | I168: 1.738828277 | J168: 1.737013357 | K168: 1.73495295 | L168: 1.732698144 | M168: 1.730292215 | N168: 1.727771186 | O168: 1.725164357 | P168: 1.722494834 | Q168: 1.719780029 | R168: 1.717032146 | S168: 1.714258653 | T168: 1.711462736 | U168: 1.708643735 | V168: 1.705797563 | W168: 1.702917107 | X168: 1.699992619 | Y168: 1.697012079 | Z168: 1.693961552 | AA168: 1.690825518 | AB168: 1.687587197 | AC168: 1.684228844 | AD168: 1.680732036 | AE168: 1.677077941 | AF168: 1.673247567 | AG168: 1.669221996 | AH168: 1.664982601 | AI168: 1.660511247 | AJ168: =f(0,AJ150)*C_L -> 1.655790474 | AK168: 1.65080366 | AL168: 1.645535178 | AM168: 1.639970519 | AN168: 1.634096414 | AO168: 1.627900933 | AP168: 1.621373563 | AQ168: 1.614505275 | AR168: 1.607288572 | AS168: 1.599717522 | AT168: 1.591787768 | AU168: 1.583496531 | AV168: 1.574842584 | AW168: 1.565826223 | AX168: 1.556449206 | AY168: 1.546714691 | AZ168: 1.536627142 | BA168: 1.526192229 | BB168: 1.515416707 | BC168: 1.504308275 | BD168: 1.492875426 | BE168: 1.481127275 | BF168: 1.469073366 | BG168: 1.456723472 | BH168: 1.444087372 | BI168: 1.431174607 | BJ168: 1.417994233 | BK168: 1.404554541 | BL168: 1.390862769 | BM168: 1.376924797 | BN168: 1.362744824 | BO168: 1.348325025 | BP168: =f(0,BP150)*C_L -> 1.333665196 | BQ168: 1.318762378 | BR168: 1.30361047 | BS168: 1.288199817 | BT168: 1.272516785 | BU168: 1.256543323 | BV168: 1.240256504 | BW168: 1.223628045 | BX168: 1.20662382 | BY168: 1.189203348 | BZ168: 1.171319269 | CA168: 1.152916799 | CB168: 1.13393317 | CC168: 1.114297056 | CD168: 1.093927976 | CE168: 1.072735687 | CF168: 1.050619553 | CG168: 1.027467905 | CH168: 1.003157376 | CI168: 0.9775522227 | CJ168: 0.9505036355 | CK168: 0.9218490219 | CL168: 0.8914112795 | CM168: 0.8589980507 | CN168: 0.8244009596 | CO168: 0.7873948331 | CP168: 0.7477369045 | CQ168: 0.7436153713 | CR168: 0.7394644526 | CS168: 0.7352838749 | CT168: 0.731073363 | CU168: 0.7268326394 | CV168: =f(0,CV150)*C_L -> 0.7225614247 | CW168: 0.7182594378 | CX168: 0.7139263953 | CY168: 0.7095620119 | CZ168: 0.7051660005 | DA168: 0.7007380719 | DB168: 0.6962779347 | DC168: 0.6917852957 | DD168: 0.6872598596 | DE168: 0.6827013291 | DF168: 0.6781094049 | DG168: 0.6734837854 | DH168: 0.6688241674 | DI168: 0.6641302451 | DJ168: 0.6594017111 | DK168: 0.6546382555 | DL168: 0.6498395666 | DM168: 0.6450053305 | DN168: 0.6401352312 | DO168: 0.6352289505 | DP168: 0.6302861682 | DQ168: 0.6253065619 | DR168: 0.620289807 | DS168: 0.6152355768 | DT168: 0.6101435425 | DU168: 0.605013373 | DV168: 0.599844735 | DW168: 0.5946372932 | DX168: 0.58939071 | DY168: 0.5841046454 | DZ168: 0.5787787576 | EA168: 0.5734127021 | EB168: =f(0,EB150)*C_L -> 0.5680061325 | EC168: 0.5625587001 | ED168: 0.5570700538 | EE168: 0.5515398403 | EF168: 0.5459677042 | EG168: 0.5403532875 | EH168: 0.5346962303 | EI168: 0.5289961699 | EJ168: 0.5232527418 | EK168: 0.5174655789 | EL168: 0.5116343118 | EM168: 0.5057585689 | EN168: 0.499837976 | EO168: 0.4938721567 | EP168: 0.4878607324 | EQ168: 0.4818033218 | ER168: 0.4756995415 | ES168: 0.4695490054 | ET168: 0.4633513254 | EU168: 0.4571061106 | EV168: 0.450812968 | EW168: 0.444471502 | EX168: 0.4380813144 | EY168: 0.431642005 | EZ168: 0.4251531707 | FA168: 0.4186144062 | FB168: 0.4120253037 | FC168: 0.4053854527 | FD168: 0.3986944405 | FE168: 0.3919518517 | FF168: 0.3851572685 | FG168: 0.3783102704 | FH168: =f(0,FH150)*C_L -> 0.3714104346 | FI168: 0.3644573356 | FJ168: 0.3574505454 | FK168: 0.3503896334 | FL168: 0.3432741665 | FM168: 0.336103709 | FN168: 0.3288778226 | FO168: 0.3215960664 | FP168: 0.3142579968 | FQ168: 0.3068631678 | FR168: 0.2994111305 | FS168: 0.2919014335 | FT168: 0.2843336228 | FU168: 0.2767072418 | FV168: 0.2690218309 | FW168: 0.2612769282 | FX168: 0.253472069 | FY168: 0.2456067857 | FZ168: 0.2376806082 | GA168: 0.2296930637 | GB168: 0.2216436766 | GC168: 0.2135319686 | GD168: 0.2053574586 | GE168: 0.1971196627 | GF168: 0.1888180943 | GG168: 0.1804522642 | GH168: 0.1720216801 | GI168: 0.1635258471 | GJ168: 0.1549642675 | GK168: 0.1463364406 | GL168: 0.137641863
B169: Error | D169: =(D166-D168)^2 -> 0.06356081845 | E169: 0.05864468046 | F169: 0.05444617099 | G169: 0.05083473554 | H169: 0.04770206792 | I169: 0.04495812032 | J169: 0.04252789342 | K169: 0.04034886345 | L169: 0.0383689247 | M169: 0.03654474487 | N169: 0.03484044768 | O169: 0.03322655193 | P169: 0.0316791089 | Q169: 0.03017899108 | R169: 0.02871129483 | S169: 0.02726482773 | T169: 0.02583165785 | U169: 0.02440670848 | V169: 0.02298738594 | W169: 0.02157323238 | X169: 0.02016559812 | Y169: 0.01876733084 | Z169: 0.01738248027 | AA169: 0.01601601866 | AB169: 0.01467357792 | AC169: 0.01336120493 | AD169: 0.0120851368 | AE169: 0.01085159764 | AF169: 0.009666618458 | AG169: 0.008535881339 | AH169: 0.007464588714 | AI169: 0.006457358106 | AJ169: =(AJ166-AJ168)^2 -> 0.005518142207 | AK169: 0.00465017371 | AL169: 0.003855933872 | AM169: 0.003137143368 | AN169: 0.002494773631 | AO169: 0.001929076623 | AP169: 0.001439630684 | AQ169: 0.001025400042 | AR169: 0.0006848053798 | AS169: 0.0004158029331 | AT169: 0.0002159695619 | AU169: 8.259138759e-05 | AV169: 1.275371597e-05 | AW169: 3.430164554e-06 | AX169: 5.156913246e-05 | AY169: 0.0001541759908 | AZ169: 0.0003083896207 | BA169: 0.000511552172 | BB169: 0.0007612711482 | BC169: 0.001055473134 | BD169: 0.001392448653 | BE169: 0.001770887791 | BF169: 0.00218990628 | BG169: 0.002649061814 | BH169: 0.003148360294 | BI169: 0.003688251671 | BJ169: 0.004269614868 | BK169: 0.004893731124 | BL169: 0.005562244839 | BM169: 0.006277110749 | BN169: 0.007040525973 | BO169: 0.007854845217 | BP169: =(BP166-BP168)^2 -> 0.008722477125 | BQ169: 0.009645759608 | BR169: 0.01062681182 | BS169: 0.01166736051 | BT169: 0.01276853849 | BU169: 0.01393065363 | BV169: 0.01515292702 | BW169: 0.0164332002 | BX169: 0.01776761257 | BY169: 0.0191502518 | BZ169: 0.02057278253 | CA169: 0.02202406118 | CB169: 0.02348974868 | CC169: 0.02495193681 | CD169: 0.02638880912 | CE169: 0.02777436332 | CF169: 0.02907822903 | CG169: 0.0302656224 | CH169: 0.03129748822 | CI169: 0.03213088969 | CJ169: 0.0327197165 | CK169: 0.03301579286 | CL169: 0.03297047797 | CM169: 0.03253686113 | CN169: 0.0316726613 | CO169: 0.03034394297 | CP169: 0.02852975335 | CQ169: 0.02832134832 | CR169: 0.0281080543 | CS169: 0.02788988366 | CT169: 0.02766685145 | CU169: 0.02743897544 | CV169: =(CV166-CV168)^2 -> 0.02720627619 | CW169: 0.02696877717 | CX169: 0.0267265048 | CY169: 0.02647948854 | CZ169: 0.02622776097 | DA169: 0.02597135786 | DB169: 0.02571031826 | DC169: 0.02544468459 | DD169: 0.02517450269 | DE169: 0.02489982194 | DF169: 0.02462069531 | DG169: 0.02433717947 | DH169: 0.02404933485 | DI169: 0.02375722577 | DJ169: 0.02346092044 | DK169: 0.02316049114 | DL169: 0.02285601423 | DM169: 0.0225475703 | DN169: 0.02223524419 | DO169: 0.02191912512 | DP169: 0.02159930676 | DQ169: 0.02127588732 | DR169: 0.02094896961 | DS169: 0.02061866117 | DT169: 0.02028507431 | DU169: 0.0199483262 | DV169: 0.01960853896 | DW169: 0.01926583975 | DX169: 0.0189203608 | DY169: 0.01857223956 | DZ169: 0.01822161869 | EA169: 0.0178686462 | EB169: =(EB166-EB168)^2 -> 0.01751347548 | EC169: 0.01715626537 | ED169: 0.01679718025 | EE169: 0.01643639005 | EF169: 0.01607407035 | EG169: 0.01571040241 | EH169: 0.01534557323 | EI169: 0.01497977555 | EJ169: 0.01461320796 | EK169: 0.01424607484 | EL169: 0.01387858646 | EM169: 0.01351095893 | EN169: 0.01314341425 | EO169: 0.0127761803 | EP169: 0.01240949081 | EQ169: 0.01204358536 | ER169: 0.01167870931 | ES169: 0.01131511381 | ET169: 0.01095305569 | EU169: 0.0105927974 | EV169: 0.01023460694 | EW169: 0.009878757732 | EX169: 0.00952552851 | EY169: 0.009175203174 | EZ169: 0.008828070629 | FA169: 0.008484424605 | FB169: 0.008144563452 | FC169: 0.007808789911 | FD169: 0.007477410867 | FE169: 0.007150737073 | FF169: 0.006829082852 | FG169: 0.006512765773 | FH169: =(FH166-FH168)^2 -> 0.006202106313 | FI169: 0.005897427491 | FJ169: 0.005599054496 | FK169: 0.005307314306 | FL169: 0.005022535308 | FM169: 0.004745046949 | FN169: 0.004475179422 | FO169: 0.004213263432 | FP169: 0.003959630088 | FQ169: 0.003714610985 | FR169: 0.003478538569 | FS169: 0.003251746936 | FT169: 0.003034573242 | FU169: 0.002827360033 | FV169: 0.002630458918 | FW169: 0.002444236226 | FX169: 0.002269081624 | FY169: 0.002105421226 | FZ169: 0.001953737596 | GA169: 0.001814600589 | GB169: 0.001688715644 | GC169: 0.001577001055 | GD169: 0.001480715264 | GE169: 0.001401674556 | GF169: 0.001342644078 | GG169: 0.001308087299 | GH169: 0.00130573525 | GI169: 0.001350315456 | GJ169: 0.00147433959 | GK169: 0.001772921051 | GL169: 0.003435712736 | GM169: =SUM(D169:GL169) -> 2.963358308
B171: Mason's optimum lift distribution function | D171: =((-0.178321*D150^3)-(0.241023*D150^2)-(0.353808*D150)+0.814627)*'Mason''s Curve'!$H$35*C_L -> 1.999765865 | E171: =((-0.178321*E150^3)-(0.241023*E150^2)-(0.353808*E150)+0.814627)*'Mason''s Curve'!$H$35*C_L -> 1.991020897 | F171: =((-0.178321*F150^3)-(0.241023*F150^2)-(0.353808*F150)+0.814627)*'Mason''s Curve'!$H$35*C_L -> 1.982154968 | G171: =((-0.178321*G150^3)-(0.241023*G150^2)-(0.353808*G150)+0.814627)*'Mason''s Curve'!$H$35*C_L -> 1.973165453 | H171: =((-0.178321*H150^3)-(0.241023*H150^2)-(0.353808*H150)+0.814627)*'Mason''s Curve'!$H$35*C_L -> 1.964049725 | I171: =((-0.178321*I150^3)-(0.241023*I150^2)-(0.353808*I150)+0.814627)*'Mason''s Curve'!$H$35*C_L -> 1.954805156 | J171: =((-0.178321*J150^3)-(0.241023*J150^2)-(0.353808*J150)+0.814627)*'Mason''s Curve'!$H$35*C_L -> 1.945429122 | K171: =((-0.178321*K150^3)-(0.241023*K150^2)-(0.353808*K150)+0.814627)*'Mason''s Curve'!$H$35*C_L -> 1.935918995 | L171: =((-0.178321*L150^3)-(0.241023*L150^2)-(0.353808*L150)+0.814627)*'Mason''s Curve'!$H$35*C_L -> 1.926272149 | M171: =((-0.178321*M150^3)-(0.241023*M150^2)-(0.353808*M150)+0.814627)*'Mason''s Curve'!$H$35*C_L -> 1.916485957 | N171: =((-0.178321*N150^3)-(0.241023*N150^2)-(0.353808*N150)+0.814627)*'Mason''s Curve'!$H$35*C_L -> 1.906557793 | O171: =((-0.178321*O150^3)-(0.241023*O150^2)-(0.353808*O150)+0.814627)*'Mason''s Curve'!$H$35*C_L -> 1.89648503 | P171: =((-0.178321*P150^3)-(0.241023*P150^2)-(0.353808*P150)+0.814627)*'Mason''s Curve'!$H$35*C_L -> 1.886265042 | Q171: =((-0.178321*Q150^3)-(0.241023*Q150^2)-(0.353808*Q150)+0.814627)*'Mason''s Curve'!$H$35*C_L -> 1.875895203 | R171: =((-0.178321*R150^3)-(0.241023*R150^2)-(0.353808*R150)+0.814627)*'Mason''s Curve'!$H$35*C_L -> 1.865372886 | S171: =((-0.178321*S150^3)-(0.241023*S150^2)-(0.353808*S150)+0.814627)*'Mason''s Curve'!$H$35*C_L -> 1.854695464 | T171: =((-0.178321*T150^3)-(0.241023*T150^2)-(0.353808*T150)+0.814627)*'Mason''s Curve'!$H$35*C_L -> 1.843860311 | U171: =((-0.178321*U150^3)-(0.241023*U150^2)-(0.353808*U150)+0.814627)*'Mason''s Curve'!$H$35*C_L -> 1.832864801 | V171: =((-0.178321*V150^3)-(0.241023*V150^2)-(0.353808*V150)+0.814627)*'Mason''s Curve'!$H$35*C_L -> 1.821706307 | W171: =((-0.178321*W150^3)-(0.241023*W150^2)-(0.353808*W150)+0.814627)*'Mason''s Curve'!$H$35*C_L -> 1.810382202 | X171: =((-0.178321*X150^3)-(0.241023*X150^2)-(0.353808*X150)+0.814627)*'Mason''s Curve'!$H$35*C_L -> 1.79888986 | Y171: =((-0.178321*Y150^3)-(0.241023*Y150^2)-(0.353808*Y150)+0.814627)*'Mason''s Curve'!$H$35*C_L -> 1.787226655 | Z171: =((-0.178321*Z150^3)-(0.241023*Z150^2)-(0.353808*Z150)+0.814627)*'Mason''s Curve'!$H$35*C_L -> 1.77538996 | AA171: =((-0.178321*AA150^3)-(0.241023*AA150^2)-(0.353808*AA150)+0.814627)*'Mason''s Curve'!$H$35*C_L -> 1.763377149 | AB171: =((-0.178321*AB150^3)-(0.241023*AB150^2)-(0.353808*AB150)+0.814627)*'Mason''s Curve'!$H$35*C_L -> 1.751185595 | AC171: =((-0.178321*AC150^3)-(0.241023*AC150^2)-(0.353808*AC150)+0.814627)*'Mason''s Curve'!$H$35*C_L -> 1.738812671 | AD171: =((-0.178321*AD150^3)-(0.241023*AD150^2)-(0.353808*AD150)+0.814627)*'Mason''s Curve'!$H$35*C_L -> 1.726255752 | AE171: =((-0.178321*AE150^3)-(0.241023*AE150^2)-(0.353808*AE150)+0.814627)*'Mason''s Curve'!$H$35*C_L -> 1.71351221 | AF171: =((-0.178321*AF150^3)-(0.241023*AF150^2)-(0.353808*AF150)+0.814627)*'Mason''s Curve'!$H$35*C_L -> 1.70057942 | AG171: =((-0.178321*AG150^3)-(0.241023*AG150^2)-(0.353808*AG150)+0.814627)*'Mason''s Curve'!$H$35*C_L -> 1.687454754 | AH171: =((-0.178321*AH150^3)-(0.241023*AH150^2)-(0.353808*AH150)+0.814627)*'Mason''s Curve'!$H$35*C_L -> 1.674135587 | AI171: =((-0.178321*AI150^3)-(0.241023*AI150^2)-(0.353808*AI150)+0.814627)*'Mason''s Curve'!$H$35*C_L -> 1.660619292 | AJ171: =((-0.178321*AJ150^3)-(0.241023*AJ150^2)-(0.353808*AJ150)+0.814627)*'Mason''s Curve'!$H$35*C_L -> 1.646903241 | AK171: =((-0.178321*AK150^3)-(0.241023*AK150^2)-(0.353808*AK150)+0.814627)*'Mason''s Curve'!$H$35*C_L -> 1.63298481 | AL171: =((-0.178321*AL150^3)-(0.241023*AL150^2)-(0.353808*AL150)+0.814627)*'Mason''s Curve'!$H$35*C_L -> 1.618861371 | AM171: =((-0.178321*AM150^3)-(0.241023*AM150^2)-(0.353808*AM150)+0.814627)*'Mason''s Curve'!$H$35*C_L -> 1.604530298 | AN171: =((-0.178321*AN150^3)-(0.241023*AN150^2)-(0.353808*AN150)+0.814627)*'Mason''s Curve'!$H$35*C_L -> 1.589988964 | AO171: =((-0.178321*AO150^3)-(0.241023*AO150^2)-(0.353808*AO150)+0.814627)*'Mason''s Curve'!$H$35*C_L -> 1.575234743 | AP171: =((-0.178321*AP150^3)-(0.241023*AP150^2)-(0.353808*AP150)+0.814627)*'Mason''s Curve'!$H$35*C_L -> 1.560265009 | AQ171: =((-0.178321*AQ150^3)-(0.241023*AQ150^2)-(0.353808*AQ150)+0.814627)*'Mason''s Curve'!$H$35*C_L -> 1.545077134 | AR171: =((-0.178321*AR150^3)-(0.241023*AR150^2)-(0.353808*AR150)+0.814627)*'Mason''s Curve'!$H$35*C_L -> 1.529668494 | AS171: =((-0.178321*AS150^3)-(0.241023*AS150^2)-(0.353808*AS150)+0.814627)*'Mason''s Curve'!$H$35*C_L -> 1.51403646 | AT171: =((-0.178321*AT150^3)-(0.241023*AT150^2)-(0.353808*AT150)+0.814627)*'Mason''s Curve'!$H$35*C_L -> 1.498178406 | AU171: =((-0.178321*AU150^3)-(0.241023*AU150^2)-(0.353808*AU150)+0.814627)*'Mason''s Curve'!$H$35*C_L -> 1.482091707 | AV171: =((-0.178321*AV150^3)-(0.241023*AV150^2)-(0.353808*AV150)+0.814627)*'Mason''s Curve'!$H$35*C_L -> 1.465773735 | AW171: =((-0.178321*AW150^3)-(0.241023*AW150^2)-(0.353808*AW150)+0.814627)*'Mason''s Curve'!$H$35*C_L -> 1.449221864 | AX171: =((-0.178321*AX150^3)-(0.241023*AX150^2)-(0.353808*AX150)+0.814627)*'Mason''s Curve'!$H$35*C_L -> 1.432433468 | AY171: =((-0.178321*AY150^3)-(0.241023*AY150^2)-(0.353808*AY150)+0.814627)*'Mason''s Curve'!$H$35*C_L -> 1.41540592 | AZ171: =((-0.178321*AZ150^3)-(0.241023*AZ150^2)-(0.353808*AZ150)+0.814627)*'Mason''s Curve'!$H$35*C_L -> 1.398136593 | BA171: =((-0.178321*BA150^3)-(0.241023*BA150^2)-(0.353808*BA150)+0.814627)*'Mason''s Curve'!$H$35*C_L -> 1.380622862 | BB171: =((-0.178321*BB150^3)-(0.241023*BB150^2)-(0.353808*BB150)+0.814627)*'Mason''s Curve'!$H$35*C_L -> 1.362862099 | BC171: =((-0.178321*BC150^3)-(0.241023*BC150^2)-(0.353808*BC150)+0.814627)*'Mason''s Curve'!$H$35*C_L -> 1.344851679 | BD171: =((-0.178321*BD150^3)-(0.241023*BD150^2)-(0.353808*BD150)+0.814627)*'Mason''s Curve'!$H$35*C_L -> 1.326588974 | BE171: =((-0.178321*BE150^3)-(0.241023*BE150^2)-(0.353808*BE150)+0.814627)*'Mason''s Curve'!$H$35*C_L -> 1.308071359 | BF171: =((-0.178321*BF150^3)-(0.241023*BF150^2)-(0.353808*BF150)+0.814627)*'Mason''s Curve'!$H$35*C_L -> 1.289296206 | BG171: =((-0.178321*BG150^3)-(0.241023*BG150^2)-(0.353808*BG150)+0.814627)*'Mason''s Curve'!$H$35*C_L -> 1.27026089 | BH171: =((-0.178321*BH150^3)-(0.241023*BH150^2)-(0.353808*BH150)+0.814627)*'Mason''s Curve'!$H$35*C_L -> 1.250962783 | BI171: =((-0.178321*BI150^3)-(0.241023*BI150^2)-(0.353808*BI150)+0.814627)*'Mason''s Curve'!$H$35*C_L -> 1.23139926 | BJ171: =((-0.178321*BJ150^3)-(0.241023*BJ150^2)-(0.353808*BJ150)+0.814627)*'Mason''s Curve'!$H$35*C_L -> 1.211567693 | BK171: =((-0.178321*BK150^3)-(0.241023*BK150^2)-(0.353808*BK150)+0.814627)*'Mason''s Curve'!$H$35*C_L -> 1.191465457 | BL171: =((-0.178321*BL150^3)-(0.241023*BL150^2)-(0.353808*BL150)+0.814627)*'Mason''s Curve'!$H$35*C_L -> 1.171089925 | BM171: =((-0.178321*BM150^3)-(0.241023*BM150^2)-(0.353808*BM150)+0.814627)*'Mason''s Curve'!$H$35*C_L -> 1.15043847 | BN171: =((-0.178321*BN150^3)-(0.241023*BN150^2)-(0.353808*BN150)+0.814627)*'Mason''s Curve'!$H$35*C_L -> 1.129508466 | BO171: =((-0.178321*BO150^3)-(0.241023*BO150^2)-(0.353808*BO150)+0.814627)*'Mason''s Curve'!$H$35*C_L -> 1.108297287 | BP171: =((-0.178321*BP150^3)-(0.241023*BP150^2)-(0.353808*BP150)+0.814627)*'Mason''s Curve'!$H$35*C_L -> 1.086802305 | BQ171: =((-0.178321*BQ150^3)-(0.241023*BQ150^2)-(0.353808*BQ150)+0.814627)*'Mason''s Curve'!$H$35*C_L -> 1.065020895 | BR171: =((-0.178321*BR150^3)-(0.241023*BR150^2)-(0.353808*BR150)+0.814627)*'Mason''s Curve'!$H$35*C_L -> 1.04295043 | BS171: =((-0.178321*BS150^3)-(0.241023*BS150^2)-(0.353808*BS150)+0.814627)*'Mason''s Curve'!$H$35*C_L -> 1.020588283 | BT171: =((-0.178321*BT150^3)-(0.241023*BT150^2)-(0.353808*BT150)+0.814627)*'Mason''s Curve'!$H$35*C_L -> 0.9979318288 | BU171: =((-0.178321*BU150^3)-(0.241023*BU150^2)-(0.353808*BU150)+0.814627)*'Mason''s Curve'!$H$35*C_L -> 0.9749784398 | BV171: =((-0.178321*BV150^3)-(0.241023*BV150^2)-(0.353808*BV150)+0.814627)*'Mason''s Curve'!$H$35*C_L -> 0.9517254899 | BW171: =((-0.178321*BW150^3)-(0.241023*BW150^2)-(0.353808*BW150)+0.814627)*'Mason''s Curve'!$H$35*C_L -> 0.9281703526 | BX171: =((-0.178321*BX150^3)-(0.241023*BX150^2)-(0.353808*BX150)+0.814627)*'Mason''s Curve'!$H$35*C_L -> 0.9043104015 | BY171: =((-0.178321*BY150^3)-(0.241023*BY150^2)-(0.353808*BY150)+0.814627)*'Mason''s Curve'!$H$35*C_L -> 0.8801430099 | BZ171: =((-0.178321*BZ150^3)-(0.241023*BZ150^2)-(0.353808*BZ150)+0.814627)*'Mason''s Curve'!$H$35*C_L -> 0.8556655515 | CA171: =((-0.178321*CA150^3)-(0.241023*CA150^2)-(0.353808*CA150)+0.814627)*'Mason''s Curve'!$H$35*C_L -> 0.8308753998 | CB171: =((-0.178321*CB150^3)-(0.241023*CB150^2)-(0.353808*CB150)+0.814627)*'Mason''s Curve'!$H$35*C_L -> 0.8057699283 | CC171: =((-0.178321*CC150^3)-(0.241023*CC150^2)-(0.353808*CC150)+0.814627)*'Mason''s Curve'!$H$35*C_L -> 0.7803465105 | CD171: =((-0.178321*CD150^3)-(0.241023*CD150^2)-(0.353808*CD150)+0.814627)*'Mason''s Curve'!$H$35*C_L -> 0.75460252 | CE171: =((-0.178321*CE150^3)-(0.241023*CE150^2)-(0.353808*CE150)+0.814627)*'Mason''s Curve'!$H$35*C_L -> 0.7285353302 | CF171: =((-0.178321*CF150^3)-(0.241023*CF150^2)-(0.353808*CF150)+0.814627)*'Mason''s Curve'!$H$35*C_L -> 0.7021423146 | CG171: =((-0.178321*CG150^3)-(0.241023*CG150^2)-(0.353808*CG150)+0.814627)*'Mason''s Curve'!$H$35*C_L -> 0.6754208469 | CH171: =((-0.178321*CH150^3)-(0.241023*CH150^2)-(0.353808*CH150)+0.814627)*'Mason''s Curve'!$H$35*C_L -> 0.6483683005 | CI171: =((-0.178321*CI150^3)-(0.241023*CI150^2)-(0.353808*CI150)+0.814627)*'Mason''s Curve'!$H$35*C_L -> 0.6209820489 | CJ171: =((-0.178321*CJ150^3)-(0.241023*CJ150^2)-(0.353808*CJ150)+0.814627)*'Mason''s Curve'!$H$35*C_L -> 0.5932594657 | CK171: =((-0.178321*CK150^3)-(0.241023*CK150^2)-(0.353808*CK150)+0.814627)*'Mason''s Curve'!$H$35*C_L -> 0.5651979244 | CL171: =((-0.178321*CL150^3)-(0.241023*CL150^2)-(0.353808*CL150)+0.814627)*'Mason''s Curve'!$H$35*C_L -> 0.5367947984 | CM171: =((-0.178321*CM150^3)-(0.241023*CM150^2)-(0.353808*CM150)+0.814627)*'Mason''s Curve'!$H$35*C_L -> 0.5080474614 | CN171: =((-0.178321*CN150^3)-(0.241023*CN150^2)-(0.353808*CN150)+0.814627)*'Mason''s Curve'!$H$35*C_L -> 0.4789532868 | CO171: =((-0.178321*CO150^3)-(0.241023*CO150^2)-(0.353808*CO150)+0.814627)*'Mason''s Curve'!$H$35*C_L -> 0.4495096482 | CP171: =((-0.178321*CP150^3)-(0.241023*CP150^2)-(0.353808*CP150)+0.814627)*'Mason''s Curve'!$H$35*C_L -> 0.419713919 | CQ171: =((-0.178321*CQ150^3)-(0.241023*CQ150^2)-(0.353808*CQ150)+0.814627)*'Mason''s Curve'!$H$35*C_L -> 0.41671488 | CR171: =((-0.178321*CR150^3)-(0.241023*CR150^2)-(0.353808*CR150)+0.814627)*'Mason''s Curve'!$H$35*C_L -> 0.4137122912 | CS171: =((-0.178321*CS150^3)-(0.241023*CS150^2)-(0.353808*CS150)+0.814627)*'Mason''s Curve'!$H$35*C_L -> 0.4107061499 | CT171: =((-0.178321*CT150^3)-(0.241023*CT150^2)-(0.353808*CT150)+0.814627)*'Mason''s Curve'!$H$35*C_L -> 0.4076964537 | CU171: =((-0.178321*CU150^3)-(0.241023*CU150^2)-(0.353808*CU150)+0.814627)*'Mason''s Curve'!$H$35*C_L -> 0.4046831997 | CV171: =((-0.178321*CV150^3)-(0.241023*CV150^2)-(0.353808*CV150)+0.814627)*'Mason''s Curve'!$H$35*C_L -> 0.4016663854 | CW171: =((-0.178321*CW150^3)-(0.241023*CW150^2)-(0.353808*CW150)+0.814627)*'Mason''s Curve'!$H$35*C_L -> 0.3986460082 | CX171: =((-0.178321*CX150^3)-(0.241023*CX150^2)-(0.353808*CX150)+0.814627)*'Mason''s Curve'!$H$35*C_L -> 0.3956220655 | CY171: =((-0.178321*CY150^3)-(0.241023*CY150^2)-(0.353808*CY150)+0.814627)*'Mason''s Curve'!$H$35*C_L -> 0.3925945546 | CZ171: =((-0.178321*CZ150^3)-(0.241023*CZ150^2)-(0.353808*CZ150)+0.814627)*'Mason''s Curve'!$H$35*C_L -> 0.3895634728 | DA171: =((-0.178321*DA150^3)-(0.241023*DA150^2)-(0.353808*DA150)+0.814627)*'Mason''s Curve'!$H$35*C_L -> 0.3865288177 | DB171: =((-0.178321*DB150^3)-(0.241023*DB150^2)-(0.353808*DB150)+0.814627)*'Mason''s Curve'!$H$35*C_L -> 0.3834905864 | DC171: =((-0.178321*DC150^3)-(0.241023*DC150^2)-(0.353808*DC150)+0.814627)*'Mason''s Curve'!$H$35*C_L -> 0.3804487765 | DD171: =((-0.178321*DD150^3)-(0.241023*DD150^2)-(0.353808*DD150)+0.814627)*'Mason''s Curve'!$H$35*C_L -> 0.3774033853 | DE171: =((-0.178321*DE150^3)-(0.241023*DE150^2)-(0.353808*DE150)+0.814627)*'Mason''s Curve'!$H$35*C_L -> 0.3743544101 | DF171: =((-0.178321*DF150^3)-(0.241023*DF150^2)-(0.353808*DF150)+0.814627)*'Mason''s Curve'!$H$35*C_L -> 0.3713018484 | DG171: =((-0.178321*DG150^3)-(0.241023*DG150^2)-(0.353808*DG150)+0.814627)*'Mason''s Curve'!$H$35*C_L -> 0.3682456974 | DH171: =((-0.178321*DH150^3)-(0.241023*DH150^2)-(0.353808*DH150)+0.814627)*'Mason''s Curve'!$H$35*C_L -> 0.3651859547 | DI171: =((-0.178321*DI150^3)-(0.241023*DI150^2)-(0.353808*DI150)+0.814627)*'Mason''s Curve'!$H$35*C_L -> 0.3621226175 | DJ171: =((-0.178321*DJ150^3)-(0.241023*DJ150^2)-(0.353808*DJ150)+0.814627)*'Mason''s Curve'!$H$35*C_L -> 0.3590556832 | DK171: =((-0.178321*DK150^3)-(0.241023*DK150^2)-(0.353808*DK150)+0.814627)*'Mason''s Curve'!$H$35*C_L -> 0.3559851492 | DL171: =((-0.178321*DL150^3)-(0.241023*DL150^2)-(0.353808*DL150)+0.814627)*'Mason''s Curve'!$H$35*C_L -> 0.3529110129 | DM171: =((-0.178321*DM150^3)-(0.241023*DM150^2)-(0.353808*DM150)+0.814627)*'Mason''s Curve'!$H$35*C_L -> 0.3498332717 | DN171: =((-0.178321*DN150^3)-(0.241023*DN150^2)-(0.353808*DN150)+0.814627)*'Mason''s Curve'!$H$35*C_L -> 0.3467519228 | DO171: =((-0.178321*DO150^3)-(0.241023*DO150^2)-(0.353808*DO150)+0.814627)*'Mason''s Curve'!$H$35*C_L -> 0.3436669638 | DP171: =((-0.178321*DP150^3)-(0.241023*DP150^2)-(0.353808*DP150)+0.814627)*'Mason''s Curve'!$H$35*C_L -> 0.3405783919 | DQ171: =((-0.178321*DQ150^3)-(0.241023*DQ150^2)-(0.353808*DQ150)+0.814627)*'Mason''s Curve'!$H$35*C_L -> 0.3374862046 | DR171: =((-0.178321*DR150^3)-(0.241023*DR150^2)-(0.353808*DR150)+0.814627)*'Mason''s Curve'!$H$35*C_L -> 0.3343903992 | DS171: =((-0.178321*DS150^3)-(0.241023*DS150^2)-(0.353808*DS150)+0.814627)*'Mason''s Curve'!$H$35*C_L -> 0.331290973 | DT171: =((-0.178321*DT150^3)-(0.241023*DT150^2)-(0.353808*DT150)+0.814627)*'Mason''s Curve'!$H$35*C_L -> 0.3281879236 | DU171: =((-0.178321*DU150^3)-(0.241023*DU150^2)-(0.353808*DU150)+0.814627)*'Mason''s Curve'!$H$35*C_L -> 0.3250812482 | DV171: =((-0.178321*DV150^3)-(0.241023*DV150^2)-(0.353808*DV150)+0.814627)*'Mason''s Curve'!$H$35*C_L -> 0.3219709441 | DW171: =((-0.178321*DW150^3)-(0.241023*DW150^2)-(0.353808*DW150)+0.814627)*'Mason''s Curve'!$H$35*C_L -> 0.3188570089 | DX171: =((-0.178321*DX150^3)-(0.241023*DX150^2)-(0.353808*DX150)+0.814627)*'Mason''s Curve'!$H$35*C_L -> 0.3157394398 | DY171: =((-0.178321*DY150^3)-(0.241023*DY150^2)-(0.353808*DY150)+0.814627)*'Mason''s Curve'!$H$35*C_L -> 0.3126182343 | DZ171: =((-0.178321*DZ150^3)-(0.241023*DZ150^2)-(0.353808*DZ150)+0.814627)*'Mason''s Curve'!$H$35*C_L -> 0.3094933896 | EA171: =((-0.178321*EA150^3)-(0.241023*EA150^2)-(0.353808*EA150)+0.814627)*'Mason''s Curve'!$H$35*C_L -> 0.3063649033 | EB171: =((-0.178321*EB150^3)-(0.241023*EB150^2)-(0.353808*EB150)+0.814627)*'Mason''s Curve'!$H$35*C_L -> 0.3032327725 | EC171: =((-0.178321*EC150^3)-(0.241023*EC150^2)-(0.353808*EC150)+0.814627)*'Mason''s Curve'!$H$35*C_L -> 0.3000969948 | ED171: =((-0.178321*ED150^3)-(0.241023*ED150^2)-(0.353808*ED150)+0.814627)*'Mason''s Curve'!$H$35*C_L -> 0.2969575675 | EE171: =((-0.178321*EE150^3)-(0.241023*EE150^2)-(0.353808*EE150)+0.814627)*'Mason''s Curve'!$H$35*C_L -> 0.293814488 | EF171: =((-0.178321*EF150^3)-(0.241023*EF150^2)-(0.353808*EF150)+0.814627)*'Mason''s Curve'!$H$35*C_L -> 0.2906677536 | EG171: =((-0.178321*EG150^3)-(0.241023*EG150^2)-(0.353808*EG150)+0.814627)*'Mason''s Curve'!$H$35*C_L -> 0.2875173618 | EH171: =((-0.178321*EH150^3)-(0.241023*EH150^2)-(0.353808*EH150)+0.814627)*'Mason''s Curve'!$H$35*C_L -> 0.2843633098 | EI171: =((-0.178321*EI150^3)-(0.241023*EI150^2)-(0.353808*EI150)+0.814627)*'Mason''s Curve'!$H$35*C_L -> 0.2812055951 | EJ171: =((-0.178321*EJ150^3)-(0.241023*EJ150^2)-(0.353808*EJ150)+0.814627)*'Mason''s Curve'!$H$35*C_L -> 0.278044215 | EK171: =((-0.178321*EK150^3)-(0.241023*EK150^2)-(0.353808*EK150)+0.814627)*'Mason''s Curve'!$H$35*C_L -> 0.2748791669 | EL171: =((-0.178321*EL150^3)-(0.241023*EL150^2)-(0.353808*EL150)+0.814627)*'Mason''s Curve'!$H$35*C_L -> 0.2717104483 | EM171: =((-0.178321*EM150^3)-(0.241023*EM150^2)-(0.353808*EM150)+0.814627)*'Mason''s Curve'!$H$35*C_L -> 0.2685380563 | EN171: =((-0.178321*EN150^3)-(0.241023*EN150^2)-(0.353808*EN150)+0.814627)*'Mason''s Curve'!$H$35*C_L -> 0.2653619886 | EO171: =((-0.178321*EO150^3)-(0.241023*EO150^2)-(0.353808*EO150)+0.814627)*'Mason''s Curve'!$H$35*C_L -> 0.2621822423 | EP171: =((-0.178321*EP150^3)-(0.241023*EP150^2)-(0.353808*EP150)+0.814627)*'Mason''s Curve'!$H$35*C_L -> 0.2589988149 | EQ171: =((-0.178321*EQ150^3)-(0.241023*EQ150^2)-(0.353808*EQ150)+0.814627)*'Mason''s Curve'!$H$35*C_L -> 0.2558117037 | ER171: =((-0.178321*ER150^3)-(0.241023*ER150^2)-(0.353808*ER150)+0.814627)*'Mason''s Curve'!$H$35*C_L -> 0.2526209062 | ES171: =((-0.178321*ES150^3)-(0.241023*ES150^2)-(0.353808*ES150)+0.814627)*'Mason''s Curve'!$H$35*C_L -> 0.2494264197 | ET171: =((-0.178321*ET150^3)-(0.241023*ET150^2)-(0.353808*ET150)+0.814627)*'Mason''s Curve'!$H$35*C_L -> 0.2462282416 | EU171: =((-0.178321*EU150^3)-(0.241023*EU150^2)-(0.353808*EU150)+0.814627)*'Mason''s Curve'!$H$35*C_L -> 0.2430263692 | EV171: =((-0.178321*EV150^3)-(0.241023*EV150^2)-(0.353808*EV150)+0.814627)*'Mason''s Curve'!$H$35*C_L -> 0.2398207999 | EW171: =((-0.178321*EW150^3)-(0.241023*EW150^2)-(0.353808*EW150)+0.814627)*'Mason''s Curve'!$H$35*C_L -> 0.2366115311 | EX171: =((-0.178321*EX150^3)-(0.241023*EX150^2)-(0.353808*EX150)+0.814627)*'Mason''s Curve'!$H$35*C_L -> 0.2333985602 | EY171: =((-0.178321*EY150^3)-(0.241023*EY150^2)-(0.353808*EY150)+0.814627)*'Mason''s Curve'!$H$35*C_L -> 0.2301818845 | EZ171: =((-0.178321*EZ150^3)-(0.241023*EZ150^2)-(0.353808*EZ150)+0.814627)*'Mason''s Curve'!$H$35*C_L -> 0.2269615015 | FA171: =((-0.178321*FA150^3)-(0.241023*FA150^2)-(0.353808*FA150)+0.814627)*'Mason''s Curve'!$H$35*C_L -> 0.2237374084 | FB171: =((-0.178321*FB150^3)-(0.241023*FB150^2)-(0.353808*FB150)+0.814627)*'Mason''s Curve'!$H$35*C_L -> 0.2205096027 | FC171: =((-0.178321*FC150^3)-(0.241023*FC150^2)-(0.353808*FC150)+0.814627)*'Mason''s Curve'!$H$35*C_L -> 0.2172780817 | FD171: =((-0.178321*FD150^3)-(0.241023*FD150^2)-(0.353808*FD150)+0.814627)*'Mason''s Curve'!$H$35*C_L -> 0.2140428428 | FE171: =((-0.178321*FE150^3)-(0.241023*FE150^2)-(0.353808*FE150)+0.814627)*'Mason''s Curve'!$H$35*C_L -> 0.2108038835 | FF171: =((-0.178321*FF150^3)-(0.241023*FF150^2)-(0.353808*FF150)+0.814627)*'Mason''s Curve'!$H$35*C_L -> 0.2075612009 | FG171: =((-0.178321*FG150^3)-(0.241023*FG150^2)-(0.353808*FG150)+0.814627)*'Mason''s Curve'!$H$35*C_L -> 0.2043147926 | FH171: =((-0.178321*FH150^3)-(0.241023*FH150^2)-(0.353808*FH150)+0.814627)*'Mason''s Curve'!$H$35*C_L -> 0.2010646559 | FI171: =((-0.178321*FI150^3)-(0.241023*FI150^2)-(0.353808*FI150)+0.814627)*'Mason''s Curve'!$H$35*C_L -> 0.1978107882 | FJ171: =((-0.178321*FJ150^3)-(0.241023*FJ150^2)-(0.353808*FJ150)+0.814627)*'Mason''s Curve'!$H$35*C_L -> 0.1945531868 | FK171: =((-0.178321*FK150^3)-(0.241023*FK150^2)-(0.353808*FK150)+0.814627)*'Mason''s Curve'!$H$35*C_L -> 0.1912918492 | FL171: =((-0.178321*FL150^3)-(0.241023*FL150^2)-(0.353808*FL150)+0.814627)*'Mason''s Curve'!$H$35*C_L -> 0.1880267726 | FM171: =((-0.178321*FM150^3)-(0.241023*FM150^2)-(0.353808*FM150)+0.814627)*'Mason''s Curve'!$H$35*C_L -> 0.1847579546 | FN171: =((-0.178321*FN150^3)-(0.241023*FN150^2)-(0.353808*FN150)+0.814627)*'Mason''s Curve'!$H$35*C_L -> 0.1814853923 | FO171: =((-0.178321*FO150^3)-(0.241023*FO150^2)-(0.353808*FO150)+0.814627)*'Mason''s Curve'!$H$35*C_L -> 0.1782090833 | FP171: =((-0.178321*FP150^3)-(0.241023*FP150^2)-(0.353808*FP150)+0.814627)*'Mason''s Curve'!$H$35*C_L -> 0.1749290249 | FQ171: =((-0.178321*FQ150^3)-(0.241023*FQ150^2)-(0.353808*FQ150)+0.814627)*'Mason''s Curve'!$H$35*C_L -> 0.1716452144 | FR171: =((-0.178321*FR150^3)-(0.241023*FR150^2)-(0.353808*FR150)+0.814627)*'Mason''s Curve'!$H$35*C_L -> 0.1683576493 | FS171: =((-0.178321*FS150^3)-(0.241023*FS150^2)-(0.353808*FS150)+0.814627)*'Mason''s Curve'!$H$35*C_L -> 0.1650663269 | FT171: =((-0.178321*FT150^3)-(0.241023*FT150^2)-(0.353808*FT150)+0.814627)*'Mason''s Curve'!$H$35*C_L -> 0.1617712446 | FU171: =((-0.178321*FU150^3)-(0.241023*FU150^2)-(0.353808*FU150)+0.814627)*'Mason''s Curve'!$H$35*C_L -> 0.1584723997 | FV171: =((-0.178321*FV150^3)-(0.241023*FV150^2)-(0.353808*FV150)+0.814627)*'Mason''s Curve'!$H$35*C_L -> 0.1551697897 | FW171: =((-0.178321*FW150^3)-(0.241023*FW150^2)-(0.353808*FW150)+0.814627)*'Mason''s Curve'!$H$35*C_L -> 0.1518634118 | FX171: =((-0.178321*FX150^3)-(0.241023*FX150^2)-(0.353808*FX150)+0.814627)*'Mason''s Curve'!$H$35*C_L -> 0.1485532636 | FY171: =((-0.178321*FY150^3)-(0.241023*FY150^2)-(0.353808*FY150)+0.814627)*'Mason''s Curve'!$H$35*C_L -> 0.1452393423 | FZ171: =((-0.178321*FZ150^3)-(0.241023*FZ150^2)-(0.353808*FZ150)+0.814627)*'Mason''s Curve'!$H$35*C_L -> 0.1419216453 | GA171: =((-0.178321*GA150^3)-(0.241023*GA150^2)-(0.353808*GA150)+0.814627)*'Mason''s Curve'!$H$35*C_L -> 0.13860017 | GB171: =((-0.178321*GB150^3)-(0.241023*GB150^2)-(0.353808*GB150)+0.814627)*'Mason''s Curve'!$H$35*C_L -> 0.1352749138 | GC171: =((-0.178321*GC150^3)-(0.241023*GC150^2)-(0.353808*GC150)+0.814627)*'Mason''s Curve'!$H$35*C_L -> 0.1319458741 | GD171: =((-0.178321*GD150^3)-(0.241023*GD150^2)-(0.353808*GD150)+0.814627)*'Mason''s Curve'!$H$35*C_L -> 0.1286130482 | GE171: =((-0.178321*GE150^3)-(0.241023*GE150^2)-(0.353808*GE150)+0.814627)*'Mason''s Curve'!$H$35*C_L -> 0.1252764334 | GF171: =((-0.178321*GF150^3)-(0.241023*GF150^2)-(0.353808*GF150)+0.814627)*'Mason''s Curve'!$H$35*C_L -> 0.1219360273 | GG171: =((-0.178321*GG150^3)-(0.241023*GG150^2)-(0.353808*GG150)+0.814627)*'Mason''s Curve'!$H$35*C_L -> 0.118591827 | GH171: =((-0.178321*GH150^3)-(0.241023*GH150^2)-(0.353808*GH150)+0.814627)*'Mason''s Curve'!$H$35*C_L -> 0.1152438301 | GI171: =((-0.178321*GI150^3)-(0.241023*GI150^2)-(0.353808*GI150)+0.814627)*'Mason''s Curve'!$H$35*C_L -> 0.1118920339 | GJ171: =((-0.178321*GJ150^3)-(0.241023*GJ150^2)-(0.353808*GJ150)+0.814627)*'Mason''s Curve'!$H$35*C_L -> 0.1085364357 | GK171: =((-0.178321*GK150^3)-(0.241023*GK150^2)-(0.353808*GK150)+0.814627)*'Mason''s Curve'!$H$35*C_L -> 0.105177033 | GL171: =((-0.178321*GL150^3)-(0.241023*GL150^2)-(0.353808*GL150)+0.814627)*'Mason''s Curve'!$H$35*C_L -> 0.1018138231
B172: Error | D172: =(D171-D166)^2 -> 3.411603038e-05 | E172: 4.288694782e-05 | F172: 4.432889986e-05 | G172: 3.875134207e-05 | H172: 2.81266463e-05 | I172: 1.55518198e-05 | J172: 4.808560304e-06 | K172: 9.173694438e-09 | L172: 5.317028727e-06 | M172: 2.47312965e-05 | N172: 6.192672428e-05 | O172: 0.0001201401267 | P172: 0.0002020961457 | Q172: 0.0003099656354 | R172: 0.0004453507748 | S172: 0.0006092916986 | T172: 0.0008022900721 | U172: 0.001024345618 | V172: 0.001275002135 | W172: 0.001553400044 | X172: 0.00185833292 | Y172: 0.002188305897 | Z172: 0.002541594172 | AA172: 0.00291630017 | AB172: 0.003310408222 | AC172: 0.003721835856 | AD172: 0.004148481044 | AE172: 0.004588264928 | AF172: 0.005039169736 | AG172: 0.005499271729 | AH172: 0.005966769165 | AI172: 0.006440005351 | AJ172: =(AJ171-AJ166)^2 -> 0.00691748694 | AK172: 0.007397897713 | AL172: 0.007880108114 | AM172: 0.008363180859 | AN172: 0.008846372956 | AO172: 0.009329134479 | AP172: 0.009811104457 | AQ172: 0.01029210422 | AR172: 0.01077212851 | AS172: 0.01125133472 | AT172: 0.01173003047 | AU172: 0.01220865987 | AV172: 0.01268778852 | AW172: 0.01316808769 | AX172: 0.01365031755 | AY172: 0.01413530981 | AZ172: 0.01462394962 | BA172: 0.01511715696 | BB172: 0.01561586747 | BC172: 0.01612101258 | BD172: 0.01663349915 | BE172: 0.01715418827 | BF172: 0.01768387334 | BG172: 0.01822325727 | BH172: 0.01877292863 | BI172: 0.01933333676 | BJ172: 0.01990476561 | BK172: 0.02048730638 | BL172: 0.02108082866 | BM172: 0.02168495028 | BN172: 0.02229900563 | BO172: 0.0229220126 | BP172: =(BP171-BP166)^2 -> 0.02355263815 | BQ172: 0.02418916262 | BR172: 0.02482944307 | BS172: 0.0254708757 | BT172: 0.02611035788 | BU172: 0.02674425005 | BV172: 0.02736833813 | BW172: 0.02797779691 | BX172: 0.02856715527 | BY172: 0.02913026403 | BZ172: 0.02966026736 | CA172: 0.03014957902 | CB172: 0.03058986456 | CC172: 0.0309720311 | CD172: 0.03128622628 | CE172: 0.03152184838 | CF172: 0.03166756971 | CG172: 0.0317113758 | CH172: 0.03164062338 | CI172: 0.03144212035 | CJ172: 0.03110223185 | CK172: 0.03060701722 | CL172: 0.02994240374 | CM172: 0.02909440468 | CN172: 0.0280493916 | CO172: 0.0267944344 | CP172: 0.02531772851 | CQ172: 0.02515745361 | CR172: 0.02499484892 | CS172: 0.02482990563 | CT172: 0.02466261521 | CU172: 0.02449296939 | CV172: =(CV171-CV166)^2 -> 0.02432096014 | CW172: 0.02414657975 | CX172: 0.02396982076 | CY172: 0.02379067601 | CZ172: 0.02360913867 | DA172: 0.0234252022 | DB172: 0.0232388604 | DC172: 0.0230501074 | DD172: 0.02285893769 | DE172: 0.02266534611 | DF172: 0.02246932788 | DG172: 0.0222708786 | DH172: 0.02206999428 | DI172: 0.02186667134 | DJ172: 0.02166090662 | DK172: 0.0214526974 | DL172: 0.02124204143 | DM172: 0.02102893692 | DN172: 0.02081338257 | DO172: 0.02059537761 | DP172: 0.02037492178 | DQ172: 0.02015201534 | DR172: 0.01992665916 | DS172: 0.01969885465 | DT172: 0.01946860387 | DU172: 0.01923590947 | DV172: 0.01900077478 | DW172: 0.01876320379 | DX172: 0.01852320121 | DY172: 0.01828077247 | DZ172: 0.01803592377 | EA172: 0.01778866209 | EB172: =(EB171-EB166)^2 -> 0.01753899525 | EC172: 0.01728693192 | ED172: 0.01703248167 | EE172: 0.016775655 | EF172: 0.0165164634 | EG172: 0.01625491935 | EH172: 0.01599103643 | EI172: 0.01572482933 | EJ172: 0.01545631388 | EK172: 0.01518550719 | EL172: 0.0149124276 | EM172: 0.01463709486 | EN172: 0.01435953011 | EO172: 0.01407975601 | EP172: 0.01379779679 | EQ172: 0.01351367838 | ER172: 0.01322742846 | ES172: 0.01293907659 | ET172: 0.01264865436 | EU172: 0.01235619543 | EV172: 0.01206173577 | EW172: 0.01176531372 | EX172: 0.01146697024 | EY172: 0.01116674903 | EZ172: 0.01086469679 | FA172: 0.01056086339 | FB172: 0.01025530218 | FC172: 0.009948070256 | FD172: 0.009639228767 | FE172: 0.009328843293 | FF172: 0.009016984252 | FG172: 0.008703727361 | FH172: =(FH171-FH166)^2 -> 0.008389154169 | FI172: 0.008073352666 | FJ172: 0.007756417982 | FK172: 0.007438453201 | FL172: 0.007119570305 | FM172: 0.00679989128 | FN172: 0.00647954942 | FO172: 0.006158690879 | FP172: 0.005837476515 | FQ172: 0.005516084119 | FR172: 0.005194711124 | FS172: 0.004873577922 | FT172: 0.004552931973 | FU172: 0.004233052956 | FV172: 0.00391425929 | FW172: 0.003596916529 | FX172: 0.003281448309 | FY172: 0.002968350885 | FZ172: 0.002658212813 | GA172: 0.002351742208 | GB172: 0.002049805459 | GC172: 0.001753483961 | GD172: 0.001464160265 | GE172: 0.001183654817 | GF172: 0.0009144551261 | GG172: 0.0006601275598 | GH172: 0.0004261289567 | GI172: 0.0002216279663 | GJ172: 6.44921711e-05 | GK172: 8.961679623e-07 | GL172: 0.0005192434151 | GM172: =SUM(D172:GL172) -> 2.641847878
B174: Triangular lift distribution function | D174: =((-2*D150)+2)*C_L -> 2.734 | E174: 2.70666 | F174: 2.67932 | G174: 2.65198 | H174: 2.62464 | I174: 2.5973 | J174: 2.56996 | K174: 2.54262 | L174: 2.51528 | M174: 2.48794 | N174: 2.4606 | O174: 2.43326 | P174: 2.40592 | Q174: 2.37858 | R174: 2.35124 | S174: 2.3239 | T174: 2.29656 | U174: 2.26922 | V174: 2.24188 | W174: 2.21454 | X174: 2.1872 | Y174: 2.15986 | Z174: 2.13252 | AA174: 2.10518 | AB174: 2.07784 | AC174: 2.0505 | AD174: 2.02316 | AE174: 1.99582 | AF174: 1.96848 | AG174: 1.94114 | AH174: 1.9138 | AI174: 1.88646 | AJ174: =((-2*AJ150)+2)*C_L -> 1.85912 | AK174: 1.83178 | AL174: 1.80444 | AM174: 1.7771 | AN174: 1.74976 | AO174: 1.72242 | AP174: 1.69508 | AQ174: 1.66774 | AR174: 1.6404 | AS174: 1.61306 | AT174: 1.58572 | AU174: 1.55838 | AV174: 1.53104 | AW174: 1.5037 | AX174: 1.47636 | AY174: 1.44902 | AZ174: 1.42168 | BA174: 1.39434 | BB174: 1.367 | BC174: 1.33966 | BD174: 1.31232 | BE174: 1.28498 | BF174: 1.25764 | BG174: 1.2303 | BH174: 1.20296 | BI174: 1.17562 | BJ174: 1.14828 | BK174: 1.12094 | BL174: 1.0936 | BM174: 1.06626 | BN174: 1.03892 | BO174: 1.01158 | BP174: =((-2*BP150)+2)*C_L -> 0.98424 | BQ174: 0.9569 | BR174: 0.92956 | BS174: 0.90222 | BT174: 0.87488 | BU174: 0.84754 | BV174: 0.8202 | BW174: 0.79286 | BX174: 0.76552 | BY174: 0.73818 | BZ174: 0.71084 | CA174: 0.6835 | CB174: 0.65616 | CC174: 0.62882 | CD174: 0.60148 | CE174: 0.57414 | CF174: 0.5468 | CG174: 0.51946 | CH174: 0.49212 | CI174: 0.46478 | CJ174: 0.43744 | CK174: 0.4101 | CL174: 0.38276 | CM174: 0.35542 | CN174: 0.32808 | CO174: 0.30074 | CP174: 0.2734 | CQ174: 0.270666 | CR174: 0.267932 | CS174: 0.265198 | CT174: 0.262464 | CU174: 0.25973 | CV174: =((-2*CV150)+2)*C_L -> 0.256996 | CW174: 0.254262 | CX174: 0.251528 | CY174: 0.248794 | CZ174: 0.24606 | DA174: 0.243326 | DB174: 0.240592 | DC174: 0.237858 | DD174: 0.235124 | DE174: 0.23239 | DF174: 0.229656 | DG174: 0.226922 | DH174: 0.224188 | DI174: 0.221454 | DJ174: 0.21872 | DK174: 0.215986 | DL174: 0.213252 | DM174: 0.210518 | DN174: 0.207784 | DO174: 0.20505 | DP174: 0.202316 | DQ174: 0.199582 | DR174: 0.196848 | DS174: 0.194114 | DT174: 0.19138 | DU174: 0.188646 | DV174: 0.185912 | DW174: 0.183178 | DX174: 0.180444 | DY174: 0.17771 | DZ174: 0.174976 | EA174: 0.172242 | EB174: =((-2*EB150)+2)*C_L -> 0.169508 | EC174: 0.166774 | ED174: 0.16404 | EE174: 0.161306 | EF174: 0.158572 | EG174: 0.155838 | EH174: 0.153104 | EI174: 0.15037 | EJ174: 0.147636 | EK174: 0.144902 | EL174: 0.142168 | EM174: 0.139434 | EN174: 0.1367 | EO174: 0.133966 | EP174: 0.131232 | EQ174: 0.128498 | ER174: 0.125764 | ES174: 0.12303 | ET174: 0.120296 | EU174: 0.117562 | EV174: 0.114828 | EW174: 0.112094 | EX174: 0.10936 | EY174: 0.106626 | EZ174: 0.103892 | FA174: 0.101158 | FB174: 0.098424 | FC174: 0.09569 | FD174: 0.092956 | FE174: 0.090222 | FF174: 0.087488 | FG174: 0.084754 | FH174: =((-2*FH150)+2)*C_L -> 0.08202 | FI174: 0.079286 | FJ174: 0.076552 | FK174: 0.073818 | FL174: 0.071084 | FM174: 0.06835 | FN174: 0.065616 | FO174: 0.062882 | FP174: 0.060148 | FQ174: 0.057414 | FR174: 0.05468 | FS174: 0.051946 | FT174: 0.049212 | FU174: 0.046478 | FV174: 0.043744 | FW174: 0.04101 | FX174: 0.038276 | FY174: 0.035542 | FZ174: 0.032808 | GA174: 0.030074 | GB174: 0.02734 | GC174: 0.024606 | GD174: 0.021872 | GE174: 0.019138 | GF174: 0.016404 | GG174: 0.01367 | GH174: 0.010936 | GI174: 0.008202 | GJ174: 0.005468 | GK174: 0.002734 | GL174: 0
B175: Error | D175: =(D174-D166)^2 -> 0.5477110474 | E175: =(E174-E166)^2 -> 0.5215553862 | F175: 0.4953668534 | G175: 0.4692792599 | H175: 0.4434144617 | I175: 0.417882635 | J175: 0.3927826225 | K175: 0.3682023377 | L175: 0.3442192169 | M175: 0.3209007077 | N175: 0.2983047861 | O175: 0.2764804937 | P175: 0.2554684868 | Q175: 0.2353015934 | R175: 0.2160053698 | S175: 0.1975986537 | T175: 0.1800941095 | U175: 0.1634987602 | V175: 0.147814506 | W175: 0.1330386245 | X175: 0.119164251 | Y175: 0.1061808377 | Z175: 0.09407459049 | AA175: 0.08282888134 | AB175: 0.07242463688 | AC175: 0.06284070197 | AD175: 0.05405417838 | AE175: 0.04604073856 | AF175: 0.03877491479 | AG175: 0.03223036413 | AH175: 0.02638010953 | AI175: 0.02119675805 | AJ175: 0.01665269656 | AK175: 0.01272026617 | AL175: 0.009371915862 | AM175: 0.006580336563 | AN175: 0.004318576455 | AO175: 0.002560138575 | AP175: 0.001279061665 | AQ175: 0.0004499853045 | AR175: 4.820027019e-05 | AS175: 4.968513672e-05 | AT175: 0.0004311300467 | AU175: 0.001169948592 | AV175: 0.002244278709 | AW175: 0.003632973449 | AX175: 0.005315582485 | AY175: 0.007272325139 | AZ175: 0.009484055719 | BA175: 0.01193222191 | BB175: 0.0145988169 | BC175: 0.01746632602 | BD175: 0.02051766837 | BE175: 0.02373613431 | BF175: 0.02710531924 | BG175: 0.03060905432 | BH175: 0.03423133484 | BI175: 0.03795624661 | BJ175: 0.04176789122 | BK175: 0.04565031052 | BL175: 0.04958741113 | BM175: 0.05356288951 | BN175: 0.0575601582 | BO175: 0.06156227411 | BP175: 0.06555186931 | BQ175: =(BQ174-BQ166)^2 -> 0.06951108535 | BR175: 0.07342151177 | BS175: 0.07726412972 | BT175: 0.08101926165 | BU175: 0.0846665281 | BV175: 0.08818481262 | BW175: 0.091552236 | BX175: 0.09474614122 | BY175: 0.09774309017 | BZ175: 0.1005188739 | CA175: 0.1030485379 | CB175: 0.1053064237 | CC175: 0.1072662291 | CD175: 0.1089010883 | CE175: 0.1101836749 | CF175: 0.1110863277 | CG175: 0.1115812041 | CH175: 0.1116404608 | CI175: 0.1112364642 | CJ175: 0.1103420339 | CK175: 0.1089307169 | CL175: 0.1069770961 | CM175: 0.1044571292 | CN175: 0.1013485134 | CO175: 0.09763106666 | CP175: 0.09328710343 | CQ175: 0.09281765071 | CR175: 0.09234176849 | CS175: 0.09185944386 | CT175: 0.09137066423 | CU175: 0.09087541729 | CV175: 0.09037369109 | CW175: 0.08986547394 | CX175: 0.0893507545 | CY175: 0.08882952172 | CZ175: 0.08830176486 | DA175: 0.08776747348 | DB175: 0.08722663747 | DC175: 0.08667924699 | DD175: 0.08612529253 | DE175: 0.08556476485 | DF175: 0.08499765501 | DG175: 0.08442395436 | DH175: 0.08384365452 | DI175: 0.08325674739 | DJ175: 0.08266322514 | DK175: 0.08206308017 | DL175: 0.08145630516 | DM175: 0.080842893 | DN175: 0.08022283682 | DO175: 0.07959612994 | DP175: 0.0789627659 | DQ175: 0.07832273838 | DR175: 0.07767604125 | DS175: 0.07702266851 | DT175: 0.07636261428 | DU175: 0.07569587275 | DV175: 0.0750224382 | DW175: 0.07434230492 | DX175: 0.07365546723 | DY175: 0.07296191938 | DZ175: 0.07226165558 | EA175: 0.07155466989 | EB175: 0.07084095623 | EC175: =(EC174-EC166)^2 -> 0.0701205083 | ED175: 0.0693933195 | EE175: 0.06865938292 | EF175: 0.06791869123 | EG175: 0.06717123662 | EH175: 0.06641701072 | EI175: 0.0656560045 | EJ175: 0.06488820817 | EK175: 0.06411361108 | EL175: 0.06333220158 | EM175: 0.0625439669 | EN175: 0.06174889301 | EO175: 0.06094696442 | EP175: 0.06013816405 | EQ175: 0.05932247298 | ER175: 0.05849987026 | ES175: 0.05767033265 | ET175: 0.05683383435 | EU175: 0.05599034668 | EV175: 0.05513983776 | EW175: 0.05428227209 | EX175: 0.05341761017 | EY175: 0.05254580797 | EZ175: 0.05166681642 | FA175: 0.05078058078 | FB175: 0.04988703994 | FC175: 0.04898612564 | FD175: 0.04807776159 | FE175: 0.04716186239 | FF175: 0.04623833243 | FG175: 0.04530706447 | FH175: 0.04436793813 | FI175: 0.04342081806 | FJ175: 0.04246555185 | FK175: 0.04150196754 | FL175: 0.04052987079 | FM175: 0.03954904139 | FN175: 0.03855922925 | FO175: 0.03756014952 | FP175: 0.03655147677 | FQ175: 0.03553283784 | FR175: 0.03450380318 | FS175: 0.03346387613 | FT175: 0.03241247957 | FU175: 0.03134893905 | FV175: 0.03027246135 | FW175: 0.02918210676 | FX175: 0.02807675264 | FY175: 0.02695504496 | FZ175: 0.02581533227 | GA175: 0.02465557396 | GB175: 0.02347320946 | GC175: 0.02226496582 | GD175: 0.02102656468 | GE175: 0.01975225566 | GF175: 0.01843403228 | GG175: 0.01706021937 | GH175: 0.01561268275 | GI175: 0.01406055436 | GJ175: 0.01234301835 | GK175: 0.01030151343 | GL175: 0.006245252476 | GM175: =SUM(D175:GL175) -> 16.23949351
B177: Section max. lift coefficient of the airfoil | C177: cL,max | D177: =(c_l.max.t-c_l.max.r)*D150+c_l.max.r -> 1.3 | E177: 1.304 | F177: 1.308 | G177: 1.312 | H177: 1.316 | I177: 1.32 | J177: 1.324 | K177: 1.328 | L177: 1.332 | M177: 1.336 | N177: 1.34 | O177: 1.344 | P177: 1.348 | Q177: 1.352 | R177: 1.356 | S177: 1.36 | T177: 1.364 | U177: 1.368 | V177: 1.372 | W177: 1.376 | X177: 1.38 | Y177: 1.384 | Z177: 1.388 | AA177: 1.392 | AB177: 1.396 | AC177: 1.4 | AD177: 1.404 | AE177: 1.408 | AF177: 1.412 | AG177: 1.416 | AH177: 1.42 | AI177: 1.424 | AJ177: =(c_l.max.t-c_l.max.r)*AJ150+c_l.max.r -> 1.428 | AK177: 1.432 | AL177: 1.436 | AM177: 1.44 | AN177: 1.444 | AO177: 1.448 | AP177: 1.452 | AQ177: 1.456 | AR177: 1.46 | AS177: 1.464 | AT177: 1.468 | AU177: 1.472 | AV177: 1.476 | AW177: 1.48 | AX177: 1.484 | AY177: 1.488 | AZ177: 1.492 | BA177: 1.496 | BB177: 1.5 | BC177: 1.504 | BD177: 1.508 | BE177: 1.512 | BF177: 1.516 | BG177: 1.52 | BH177: 1.524 | BI177: 1.528 | BJ177: 1.532 | BK177: 1.536 | BL177: 1.54 | BM177: 1.544 | BN177: 1.548 | BO177: 1.552 | BP177: =(c_l.max.t-c_l.max.r)*BP150+c_l.max.r -> 1.556 | BQ177: 1.56 | BR177: 1.564 | BS177: 1.568 | BT177: 1.572 | BU177: 1.576 | BV177: 1.58 | BW177: 1.584 | BX177: 1.588 | BY177: 1.592 | BZ177: 1.596 | CA177: 1.6 | CB177: 1.604 | CC177: 1.608 | CD177: 1.612 | CE177: 1.616 | CF177: 1.62 | CG177: 1.624 | CH177: 1.628 | CI177: 1.632 | CJ177: 1.636 | CK177: 1.64 | CL177: 1.644 | CM177: 1.648 | CN177: 1.652 | CO177: 1.656 | CP177: 1.66 | CQ177: 1.6604 | CR177: 1.6608 | CS177: 1.6612 | CT177: 1.6616 | CU177: 1.662 | CV177: =(c_l.max.t-c_l.max.r)*CV150+c_l.max.r -> 1.6624 | CW177: 1.6628 | CX177: 1.6632 | CY177: 1.6636 | CZ177: 1.664 | DA177: 1.6644 | DB177: 1.6648 | DC177: 1.6652 | DD177: 1.6656 | DE177: 1.666 | DF177: 1.6664 | DG177: 1.6668 | DH177: 1.6672 | DI177: 1.6676 | DJ177: 1.668 | DK177: 1.6684 | DL177: 1.6688 | DM177: 1.6692 | DN177: 1.6696 | DO177: 1.67 | DP177: 1.6704 | DQ177: 1.6708 | DR177: 1.6712 | DS177: 1.6716 | DT177: 1.672 | DU177: 1.6724 | DV177: 1.6728 | DW177: 1.6732 | DX177: 1.6736 | DY177: 1.674 | DZ177: 1.6744 | EA177: 1.6748 | EB177: =(c_l.max.t-c_l.max.r)*EB150+c_l.max.r -> 1.6752 | EC177: 1.6756 | ED177: 1.676 | EE177: 1.6764 | EF177: 1.6768 | EG177: 1.6772 | EH177: 1.6776 | EI177: 1.678 | EJ177: 1.6784 | EK177: 1.6788 | EL177: 1.6792 | EM177: 1.6796 | EN177: 1.68 | EO177: 1.6804 | EP177: 1.6808 | EQ177: 1.6812 | ER177: 1.6816 | ES177: 1.682 | ET177: 1.6824 | EU177: 1.6828 | EV177: 1.6832 | EW177: 1.6836 | EX177: 1.684 | EY177: 1.6844 | EZ177: 1.6848 | FA177: 1.6852 | FB177: 1.6856 | FC177: 1.686 | FD177: 1.6864 | FE177: 1.6868 | FF177: 1.6872 | FG177: 1.6876 | FH177: =(c_l.max.t-c_l.max.r)*FH150+c_l.max.r -> 1.688 | FI177: 1.6884 | FJ177: 1.6888 | FK177: 1.6892 | FL177: 1.6896 | FM177: 1.69 | FN177: 1.6904 | FO177: 1.6908 | FP177: 1.6912 | FQ177: 1.6916 | FR177: 1.692 | FS177: 1.6924 | FT177: 1.6928 | FU177: 1.6932 | FV177: 1.6936 | FW177: 1.694 | FX177: 1.6944 | FY177: 1.6948 | FZ177: 1.6952 | GA177: 1.6956 | GB177: 1.696 | GC177: 1.6964 | GD177: 1.6968 | GE177: 1.6972 | GF177: 1.6976 | GG177: 1.698 | GH177: 1.6984 | GI177: 1.6988 | GJ177: 1.6992 | GK177: 1.6996 | GL177: 1.7
B179: (clmax-clb)/cla | D179: =(D177-D160)/D158 -> 1.138097961 | E179: =(E177-E160)/E158 -> 1.137011427 | F179: 1.135554611 | G179: 1.133763218 | H179: 1.131671533 | I179: 1.129312316 | J179: 1.126716735 | K179: 1.123914315 | L179: 1.120932907 | M179: 1.117798682 | N179: 1.114536135 | O179: 1.111168105 | P179: 1.107715807 | Q179: 1.104198873 | R179: 1.100635399 | S179: 1.097042003 | T179: 1.093433881 | U179: 1.089824875 | V179: 1.086227533 | W179: 1.082653177 | X179: 1.079111974 | Y179: 1.075612998 | Z179: 1.072164301 | AA179: 1.068772973 | AB179: 1.065445212 | AC179: 1.062186382 | AD179: 1.059001073 | AE179: 1.055893161 | AF179: 1.052865866 | AG179: 1.049921798 | AH179: 1.047063019 | AI179: 1.044291085 | AJ179: 1.041607097 | AK179: 1.039011746 | AL179: 1.036505357 | AM179: 1.034087932 | AN179: 1.03175919 | AO179: 1.029518608 | AP179: 1.027365457 | AQ179: 1.025298842 | AR179: 1.023317739 | AS179: 1.021421027 | AT179: 1.019607531 | AU179: 1.01787605 | AV179: 1.016225397 | AW179: 1.014654436 | AX179: 1.013162113 | AY179: 1.0117475 | AZ179: 1.010409828 | BA179: 1.00914853 | BB179: 1.00796328 | BC179: 1.006854035 | BD179: 1.005821086 | BE179: 1.004865098 | BF179: 1.00398717 | BG179: 1.003188884 | BH179: 1.002472369 | BI179: 1.001840362 | BJ179: 1.001296286 | BK179: 1.000844319 | BL179: 1.000489491 | BM179: 1.000237774 | BN179: 1.000096194 | BO179: 1.000072951 | BP179: 1.000177561 | BQ179: =(BQ177-BQ160)/BQ158 -> 1.000421013 | BR179: 1.000815951 | BS179: 1.001376888 | BT179: 1.002120443 | BU179: 1.003065638 | BV179: 1.004234227 | BW179: 1.005651099 | BX179: 1.007344754 | BY179: 1.009347875 | BZ179: 1.011698017 | CA179: 1.014438454 | CB179: 1.017619206 | CC179: 1.021298321 | CD179: 1.025543466 | CE179: 1.030433933 | CF179: 1.036063184 | CG179: 1.042542131 | CH179: 1.050003377 | CI179: 1.058606815 | CJ179: 1.068547081 | CK179: 1.080063643 | CL179: 1.093454707 | CM179: 1.109096717 | CN179: 1.127472334 | CO179: 1.149211549 | CP179: 1.17515386 | CQ179: 1.178020026 | CR179: 1.180940665 | CS179: 1.183917175 | CT179: 1.186951004 | CU179: 1.190043651 | CV179: 1.193196668 | CW179: 1.196411662 | CX179: 1.199690299 | CY179: 1.203034306 | CZ179: 1.206445474 | DA179: 1.20992566 | DB179: 1.213476793 | DC179: 1.217100874 | DD179: 1.220799983 | DE179: 1.224576277 | DF179: 1.228432003 | DG179: 1.232369494 | DH179: 1.236391179 | DI179: 1.240499585 | DJ179: 1.244697341 | DK179: 1.24898719 | DL179: 1.253371986 | DM179: 1.257854708 | DN179: 1.262438461 | DO179: 1.267126487 | DP179: 1.271922169 | DQ179: 1.276829044 | DR179: 1.281850808 | DS179: 1.286991326 | DT179: 1.292254642 | DU179: 1.29764499 | DV179: 1.303166808 | DW179: 1.308824745 | DX179: 1.31462368 | DY179: 1.320568733 | DZ179: 1.32666528 | EA179: 1.332918974 | EB179: 1.339335758 | EC179: =(EC177-EC160)/EC158 -> 1.345921889 | ED179: 1.352683956 | EE179: 1.359628904 | EF179: 1.366764061 | EG179: 1.374097162 | EH179: 1.381636382 | EI179: 1.389390363 | EJ179: 1.397368257 | EK179: 1.405579758 | EL179: 1.414035148 | EM179: 1.42274534 | EN179: 1.431721933 | EO179: 1.440977265 | EP179: 1.450524476 | EQ179: 1.460377574 | ER179: 1.470551515 | ES179: 1.481062282 | ET179: 1.49192698 | EU179: 1.50316394 | EV179: 1.514792832 | EW179: 1.526834797 | EX179: 1.53931259 | EY179: 1.552250741 | EZ179: 1.565675743 | FA179: 1.579616254 | FB179: 1.594103333 | FC179: 1.60917071 | FD179: 1.624855085 | FE179: 1.641196482 | FF179: 1.658238643 | FG179: 1.676029494 | FH179: 1.694621679 | FI179: 1.714073176 | FJ179: 1.73444803 | FK179: 1.755817199 | FL179: 1.778259562 | FM179: 1.80186311 | FN179: 1.826726373 | FO179: 1.852960129 | FP179: 1.880689474 | FQ179: 1.910056349 | FR179: 1.941222645 | FS179: 1.974374049 | FT179: 2.009724872 | FU179: 2.047524156 | FV179: 2.088063506 | FW179: 2.131687256 | FX179: 2.178805888 | FY179: 2.229914005 | FZ179: 2.285614921 | GA179: 2.34665501 | GB179: 2.413972948 | GC179: 2.488772454 | GD179: 2.572633662 | GE179: 2.667691192 | GF179: 2.776934687 | GG179: 2.904752258 | GH179: 3.05800763 | GI179: 3.248469167 | GJ179: 3.499487444 | GK179: 3.872326502 | GL179: 5.022565638 | GM179: =MIN(D179:GL179) -> 1.000072951
B180: Aerodynamic twist at the tip | C180: et | D180: =eps_t*PI()/180 -> -0.1745329252 | E180: rad | F180: conversion!
B182: Plot for wing figure | C182: Eta | D182: LE | E182: 0.25 | F182: TE
C183: 0 | D183: =C195 -> 0.3448275862 | E183: =0.75*C195 -> 0.2586206897 | F183: 0
C184: 1 | D184: =-TAN(C192)+C195 -> -0.1938938651 | E184: =-TAN(phi_25*PI()/180)+0.75*C195 -> -0.2076869685 | F184: =-TAN(C193) -> -0.2490662788
B186: Plot for wing root and wing tip | C186: x | D186: y
C187: 0 | D187: 0
C188: 0 | D188: =C195 -> 0.3448275862
C190: 1 | D190: =D184 -> -0.1938938651
C191: 1 | D191: =F184 -> -0.2490662788
B192: Leading edge sweep [rad] | C192: =ATAN(TAN(phi_25*PI()/180)-(4/A_w)*(-0.25*((1-lam)/(1+lam)))) -> 0.4941428391
B193: Trailing edge sweep [rad] | C193: =ATAN(TAN(phi_25*PI()/180)-(4/A_w)*(0.75*((1-lam)/(1+lam)))) -> 0.2440996739
B194: Mid chord sweep [rad] | C194: =ATAN(TAN(phi_25*PI()/180)-(4/A_w)*(0.25*((1-lam)/(1+lam)))) -> 0.3752314097
B195: qualitative cg representation for wing figure | C195: =2*2/(A_w*(1+lam)) -> 0.3448275862
B196: kappa = beta * c_L,alpha / (2*pi) | C196: =bet*cl_alpha_mean/(2*PI()) -> 0.9059471539
B197: Wing lift curve slope (DATCOM) [1/rad] | C197: =2*PI()*A_w/(2+SQRT(A_w^2*bet^2/kappa^2*(1+(TAN(MC_angle))^2/kappa^2)+4)) -> 6.618309385
B198: Wing lift curve slope (DATCOM, approximate) [1/rad] | C198: =2*PI()*A_w/(2+SQRT(A_w^2*(1+(TAN(MC_angle))^2-Mac^2)+4)) -> 6.64827195
